Workbook

Sheet Instruktion
A1: Rev: 160207. Tomas Peterson, 070-5576686, vallbo.gryttved@tele2.se
C2: Om fel upptäcks i sammanställningen kontakta Tomas.
A3: Poänggrund: Varje åk (12st.) är poänggrundande varav åkare får räkna de 6 bästa poängen.
A4: Poängstege: 100, 80, 70, 60, 55, 50, 48, 46, 44, 42, 40, 39, 38 osv.
C5: Vid samma tid får åkarna lika poäng (t.ex delad 2:a ger 80p för bägge, 4:an 60...).
A6: Särskiljning: Om två åkare har samma totalpoäng räknas flest 100:poängare (av alla kvalåk). Om det ändå är lika räknas antal 80:p, 70:p osv. tills åkarna kan skiljas åt.
A7: Ranking: | C7: Rankingen till Svealandsfinalen delas in i U13 och U14 vilket gör att det kan skilja på placeringarna från totala sammanställningen. Allt enligt SSF`s riktlinjer.
A9: Plac: | B9: Poäng
A10: 1 | B10: 100
A11: 2 | B11: 80
A12: 3 | B12: 70
A13: 4 | B13: 60
A14: 5 | B14: 55
A15: 6 | B15: 50
A16: 7 | B16: 48
A17: 8 | B17: 46
A18: 9 | B18: 44
A19: 10 | B19: 42
A20: 11 | B20: 40
A21: 12 | B21: 39
A22: 13 | B22: 38
A23: 14 | B23: 37
A24: 15 | B24: 36
A25: 16 | B25: 35
A26: 17 | B26: 34
A27: 18 | B27: 33
A28: 19 | B28: 32
A29: 20 | B29: 31
A30: 21 | B30: 30
A31: 22 | B31: 29
A32: 23 | B32: 28
A33: 24 | B33: 27
A34: 25 | B34: 26
A35: 26 | B35: 25
A36: 27 | B36: 24
A37: 28 | B37: 23
A38: 29 | B38: 22
A39: 30 | B39: 21
A40: 31 | B40: 20
A41: 32 | B41: 19
A42: 33 | B42: 18
A43: 34 | B43: 17
A44: 35 | B44: 16
A45: 36 | B45: 15
A46: 37 | B46: 14
A47: 38 | B47: 13
A48: 39 | B48: 12
A49: 40 | B49: 11
A50: 41 | B50: 10
A51: 42 | B51: 9
A52: 43 | B52: 8
A53: 44 | B53: 7
A54: 45 | B54: 6
A55: 46 | B55: 5
A56: 47 | B56: 4
A57: 48 | B57: 3
A58: 49 | B58: 2
A59: 50 | B59: 1
A60: 51 | B60: 1
A61: 52 | B61: 1
A62: osv

Sheet F U12
A1: LVC-sammanställning Värmland 2016 | R1: Ändra ej i grå fält
E2: Branäs | G2: Kil | I2: Sunne | K2: Sunne | M2: Valfjället | O2: Grums | Q2: Grums
A3: Klass: | B3: Flickor U12 | E3: GS1 | F3: GS2 | G3: SL1 | H3: SL2 | I3: GS3 | J3: GS4 | K3: SG1 | L3: SG2 | M3: SG3 | N3: SG4 | O3: SL3 | P3: SL4 | Q3: SL5 | R3: SL6
A4: Plac | B4: Namn | C4: År | D4: Klubb | E4: 1 | F4: 2 | G4: 3 | H4: 4 | I4: 5 | J4: 6 | K4: 7 | L4: 8 | M4: 9 | N4: 10 | O4: 11 | P4: 12 | Q4: 13 | R4: 14 | S4: Tot: | T4: 6 Bästa
A5: 1 | B5: Iris Öien | C5: 2004 | D5: Karlstads SLK | E5: 70 | F5: 100 | G5: 80 | H5: 60 | I5: 100 | J5: 100 | K5: 100 | L5: 100 | M5: 80 | N5: 100 | O5: 0 | P5: 0 | S5: =SUM(E5:P5) -> 890 | T5: =(SUM(E5:P5)-SMALL(E5:P5,1)-SMALL(E5:P5,2)-SMALL(E5:P5,3)-SMALL(E5:P5,4)-SMALL(E5:P5,5)-SMALL(E5:P5,6)) -> 600
A6: 2 | B6: Maja Eriksson | C6: 2004 | D6: Karlstads SLK | E6: 100 | F6: 0 | G6: 0 | H6: 55 | I6: 80 | J6: 80 | K6: 0 | L6: 0 | M6: 100 | N6: 80 | O6: 0 | P6: 0 | S6: =SUM(E6:P6) -> 495 | T6: =(SUM(E6:P6)-SMALL(E6:P6,1)-SMALL(E6:P6,2)-SMALL(E6:P6,3)-SMALL(E6:P6,4)-SMALL(E6:P6,5)-SMALL(E6:P6,6)) -> 495
A7: 3 | B7: Tuva Grönstedt | C7: 2004 | D7: Karlstads SLK | E7: 80 | F7: 0 | G7: 100 | H7: 100 | I7: 0 | J7: 55 | K7: 0 | L7: 0 | M7: 48 | N7: 60 | O7: 0 | P7: 0 | S7: =SUM(E7:P7) -> 443 | T7: =(SUM(E7:P7)-SMALL(E7:P7,1)-SMALL(E7:P7,2)-SMALL(E7:P7,3)-SMALL(E7:P7,4)-SMALL(E7:P7,5)-SMALL(E7:P7,6)) -> 443
A8: 4 | B8: Jennifer Olsson | C8: 2005 | D8: Sunne AK | E8: 50 | F8: 70 | G8: 60 | H8: 48 | I8: 46 | J8: 70 | K8: 80 | L8: 80 | M8: 70 | N8: 70 | O8: 0 | P8: 0 | S8: =SUM(E8:P8) -> 644 | T8: =(SUM(E8:P8)-SMALL(E8:P8,1)-SMALL(E8:P8,2)-SMALL(E8:P8,3)-SMALL(E8:P8,4)-SMALL(E8:P8,5)-SMALL(E8:P8,6)) -> 440
A9: 5 | B9: Vera Holm | C9: 2004 | D9: Grums SLK | E9: 48 | F9: 55 | G9: 70 | H9: 80 | I9: 70 | J9: 50 | K9: 0 | L9: 0 | M9: 0 | N9: 40 | O9: 0 | P9: 0 | S9: =SUM(E9:P9) -> 413 | T9: =(SUM(E9:P9)-SMALL(E9:P9,1)-SMALL(E9:P9,2)-SMALL(E9:P9,3)-SMALL(E9:P9,4)-SMALL(E9:P9,5)-SMALL(E9:P9,6)) -> 373
A10: 6 | B10: Ellen Dalslåen | C10: 2005 | D10: Sunne AK | E10: 60 | F10: 80 | G10: 0 | H10: 70 | I10: 50 | J10: 46 | K10: 0 | L10: 0 | M10: 60 | N10: 50 | O10: 0 | P10: 0 | S10: =SUM(E10:P10) -> 416 | T10: =(SUM(E10:P10)-SMALL(E10:P10,1)-SMALL(E10:P10,2)-SMALL(E10:P10,3)-SMALL(E10:P10,4)-SMALL(E10:P10,5)-SMALL(E10:P10,6)) -> 370
A11: 7 | B11: Tilde Olsson | C11: 2004 | D11: Sunne AK | E11: 55 | F11: 60 | G11: 50 | H11: 50 | I11: 55 | J11: 60 | K11: 55 | L11: 55 | M11: 50 | N11: 55 | O11: 0 | P11: 0 | S11: =SUM(E11:P11) -> 545 | T11: =(SUM(E11:P11)-SMALL(E11:P11,1)-SMALL(E11:P11,2)-SMALL(E11:P11,3)-SMALL(E11:P11,4)-SMALL(E11:P11,5)-SMALL(E11:P11,6)) -> 340
A12: 8 | B12: Emma Lundkvist | C12: 2004 | D12: Sunne AK | E12: 38 | F12: 40 | G12: 48 | H12: 42 | I12: 60 | J12: 48 | K12: 60 | L12: 70 | M12: 48 | N12: 48 | O12: 0 | P12: 0 | S12: =SUM(E12:P12) -> 502 | T12: =(SUM(E12:P12)-SMALL(E12:P12,1)-SMALL(E12:P12,2)-SMALL(E12:P12,3)-SMALL(E12:P12,4)-SMALL(E12:P12,5)-SMALL(E12:P12,6)) -> 334
A13: 9 | B13: Meja Tjärnestig | C13: 2004 | D13: Valfjällets SLK | E13: 40 | F13: 48 | G13: 42 | H13: 39 | I13: 44 | J13: 42 | K13: 70 | L13: 60 | M13: 55 | N13: 42 | O13: 0 | P13: 0 | S13: =SUM(E13:P13) -> 482 | T13: =(SUM(E13:P13)-SMALL(E13:P13,1)-SMALL(E13:P13,2)-SMALL(E13:P13,3)-SMALL(E13:P13,4)-SMALL(E13:P13,5)-SMALL(E13:P13,6)) -> 319
A14: 10 | B14: Stina Lindgren | C14: 2005 | D14: Ekshärads SLK | E14: 42 | F14: 50 | G14: 55 | H14: 44 | I14: 48 | J14: 44 | K14: 0 | L14: 0 | M14: 38 | N14: 36 | O14: 0 | P14: 0 | S14: =SUM(E14:P14) -> 357 | T14: =(SUM(E14:P14)-SMALL(E14:P14,1)-SMALL(E14:P14,2)-SMALL(E14:P14,3)-SMALL(E14:P14,4)-SMALL(E14:P14,5)-SMALL(E14:P14,6)) -> 283
A15: 11 | B15: Tuva Andersson | C15: 2004 | D15: Valfjällets SLK | E15: 46 | F15: 42 | G15: 48 | H15: 46 | I15: 42 | J15: 40 | K15: 0 | L15: 0 | M15: 44 | N15: 46 | O15: 0 | P15: 0 | S15: =SUM(E15:P15) -> 354 | T15: =(SUM(E15:P15)-SMALL(E15:P15,1)-SMALL(E15:P15,2)-SMALL(E15:P15,3)-SMALL(E15:P15,4)-SMALL(E15:P15,5)-SMALL(E15:P15,6)) -> 272
A16: 12 | B16: Erica Lundgren | C16: 2004 | D16: Karlstads SLK | E16: 44 | F16: 44 | G16: 40 | H16: 37 | I16: 35 | J16: 37 | K16: 48 | L16: 48 | M16: 36 | N16: 34 | O16: 0 | P16: 0 | S16: =SUM(E16:P16) -> 403 | T16: =(SUM(E16:P16)-SMALL(E16:P16,1)-SMALL(E16:P16,2)-SMALL(E16:P16,3)-SMALL(E16:P16,4)-SMALL(E16:P16,5)-SMALL(E16:P16,6)) -> 261
A17: 13 | B17: Victoria Eriksson | C17: 2005 | D17: Ekshärads SLK | E17: 39 | F17: 46 | G17: 35 | H17: 36 | I17: 36 | J17: 35 | K17: 44 | L17: 46 | M17: 37 | N17: 37 | O17: 0 | P17: 0 | S17: =SUM(E17:P17) -> 391 | T17: =(SUM(E17:P17)-SMALL(E17:P17,1)-SMALL(E17:P17,2)-SMALL(E17:P17,3)-SMALL(E17:P17,4)-SMALL(E17:P17,5)-SMALL(E17:P17,6)) -> 249
A18: 14 | B18: Lisa Elvin | C18: 2004 | D18: Grums SLK | E18: 34 | F18: 36 | G18: 0 | H18: 0 | I18: 39 | J18: 39 | K18: 50 | L18: 50 | M18: 0 | N18: 0 | O18: 0 | P18: 0 | S18: =SUM(E18:P18) -> 248 | T18: =(SUM(E18:P18)-SMALL(E18:P18,1)-SMALL(E18:P18,2)-SMALL(E18:P18,3)-SMALL(E18:P18,4)-SMALL(E18:P18,5)-SMALL(E18:P18,6)) -> 248
A19: 15 | B19: Siri Raij | C19: 2005 | D19: Kils SLK | E19: 36 | F19: 39 | G19: 36 | H19: 39 | I19: 0 | J19: 38 | K19: 46 | L19: 44 | M19: 34 | N19: 33 | O19: 0 | P19: 0 | S19: =SUM(E19:P19) -> 345 | T19: =(SUM(E19:P19)-SMALL(E19:P19,1)-SMALL(E19:P19,2)-SMALL(E19:P19,3)-SMALL(E19:P19,4)-SMALL(E19:P19,5)-SMALL(E19:P19,6)) -> 242
A20: 16 | B20: Clara Axelsson | C20: 2004 | D20: Grums SLK | E20: 37 | F20: 38 | G20: 44 | H20: 40 | I20: 37 | J20: 33 | K20: 0 | L20: 0 | M20: 0 | N20: 0 | O20: 0 | P20: 0 | S20: =SUM(E20:P20) -> 229 | T20: =(SUM(E20:P20)-SMALL(E20:P20,1)-SMALL(E20:P20,2)-SMALL(E20:P20,3)-SMALL(E20:P20,4)-SMALL(E20:P20,5)-SMALL(E20:P20,6)) -> 229
A21: 17 | B21: Maja Karlberg | C21: 2005 | D21: Karlstads SLK | E21: 35 | F21: 37 | G21: 33 | H21: 31 | I21: 33 | J21: 34 | K21: 0 | L21: 0 | M21: 39 | N21: 38 | O21: 0 | P21: 0 | S21: =SUM(E21:P21) -> 280 | T21: =(SUM(E21:P21)-SMALL(E21:P21,1)-SMALL(E21:P21,2)-SMALL(E21:P21,3)-SMALL(E21:P21,4)-SMALL(E21:P21,5)-SMALL(E21:P21,6)) -> 216
A22: 18 | B22: Smilla Von Wachenfeldt | C22: 2004 | D22: Arvika SLK | E22: 33 | F22: 35 | G22: 29 | H22: 28 | I22: 0 | J22: 0 | K22: 0 | L22: 0 | M22: 35 | N22: 35 | O22: 0 | P22: 0 | S22: =SUM(E22:P22) -> 195 | T22: =(SUM(E22:P22)-SMALL(E22:P22,1)-SMALL(E22:P22,2)-SMALL(E22:P22,3)-SMALL(E22:P22,4)-SMALL(E22:P22,5)-SMALL(E22:P22,6)) -> 195
A23: 19 | B23: Hanna Nilsson | C23: 2005 | D23: Valfjällets SLK | E23: 0 | F23: 0 | G23: 0 | H23: 30 | I23: 38 | J23: 36 | K23: 0 | L23: 0 | M23: 42 | N23: 44 | O23: 0 | P23: 0 | S23: =SUM(E23:P23) -> 190 | T23: =(SUM(E23:P23)-SMALL(E23:P23,1)-SMALL(E23:P23,2)-SMALL(E23:P23,3)-SMALL(E23:P23,4)-SMALL(E23:P23,5)-SMALL(E23:P23,6)) -> 190
A24: 20 | B24: Maja Nilsson | C24: 2005 | D24: Grums SLK | E24: 32 | F24: 34 | G24: 31 | H24: 27 | I24: 0 | J24: 32 | K24: 0 | L24: 0 | M24: 0 | N24: 0 | O24: 0 | P24: 0 | S24: =SUM(E24:P24) -> 156 | T24: =(SUM(E24:P24)-SMALL(E24:P24,1)-SMALL(E24:P24,2)-SMALL(E24:P24,3)-SMALL(E24:P24,4)-SMALL(E24:P24,5)-SMALL(E24:P24,6)) -> 156
A25: 21 | B25: Isa Adolfsson | C25: 2005 | D25: Karlstads SLK | E25: 0 | F25: 0 | G25: 28 | H25: 26 | I25: 0 | J25: 0 | K25: 42 | L25: 42 | M25: 0 | N25: 0 | O25: 0 | P25: 0 | S25: =SUM(E25:P25) -> 138 | T25: =(SUM(E25:P25)-SMALL(E25:P25,1)-SMALL(E25:P25,2)-SMALL(E25:P25,3)-SMALL(E25:P25,4)-SMALL(E25:P25,5)-SMALL(E25:P25,6)) -> 138
A26: 22 | B26: Elina Börjesson | C26: 2005 | D26: Valfjällets SLK | E26: 0 | F26: 0 | G26: 32 | H26: 29 | I26: 0 | J26: 0 | K26: 0 | L26: 0 | M26: 33 | N26: 32 | O26: 0 | P26: 0 | S26: =SUM(E26:P26) -> 126 | T26: =(SUM(E26:P26)-SMALL(E26:P26,1)-SMALL(E26:P26,2)-SMALL(E26:P26,3)-SMALL(E26:P26,4)-SMALL(E26:P26,5)-SMALL(E26:P26,6)) -> 126
A27: 23 | B27: Julia Höög | C27: 2005 | D27: Valfjällets SLK | E27: 0 | F27: 0 | G27: 30 | H27: 25 | I27: 0 | J27: 0 | K27: 0 | L27: 0 | M27: 32 | N27: 30 | O27: 0 | P27: 0 | S27: =SUM(E27:P27) -> 117 | T27: =(SUM(E27:P27)-SMALL(E27:P27,1)-SMALL(E27:P27,2)-SMALL(E27:P27,3)-SMALL(E27:P27,4)-SMALL(E27:P27,5)-SMALL(E27:P27,6)) -> 117
A28: 24 | B28: Vera Svending | C28: 2005 | D28: Kils SLK | E28: 0 | F28: 0 | G28: 39 | H28: 35 | I28: 40 | J28: 0 | K28: 0 | L28: 0 | M28: 0 | N28: 0 | O28: 0 | P28: 0 | S28: =SUM(E28:P28) -> 114 | T28: =(SUM(E28:P28)-SMALL(E28:P28,1)-SMALL(E28:P28,2)-SMALL(E28:P28,3)-SMALL(E28:P28,4)-SMALL(E28:P28,5)-SMALL(E28:P28,6)) -> 114
A29: 25 | B29: Elin Wiktorsson | C29: 2005 | D29: Karlstads SLK | E29: 0 | F29: 0 | G29: 38 | H29: 34 | I29: 0 | J29: 31 | K29: 0 | L29: 0 | M29: 0 | N29: 0 | O29: 0 | P29: 0 | S29: =SUM(E29:P29) -> 103 | T29: =(SUM(E29:P29)-SMALL(E29:P29,1)-SMALL(E29:P29,2)-SMALL(E29:P29,3)-SMALL(E29:P29,4)-SMALL(E29:P29,5)-SMALL(E29:P29,6)) -> 103
A30: 26 | B30: Kristin Åslund | C30: 2004 | D30: Kils SLK | E30: 0 | F30: 0 | G30: 0 | H30: 33 | I30: 34 | J30: 30 | K30: 0 | L30: 0 | M30: 0 | N30: 0 | O30: 0 | P30: 0 | S30: =SUM(E30:P30) -> 97 | T30: =(SUM(E30:P30)-SMALL(E30:P30,1)-SMALL(E30:P30,2)-SMALL(E30:P30,3)-SMALL(E30:P30,4)-SMALL(E30:P30,5)-SMALL(E30:P30,6)) -> 97
A31: 27 | B31: Saga Bryntesson | C31: 2004 | D31: Valfjällets SLK | E31: 0 | F31: 0 | G31: 0 | H31: 0 | I31: 0 | J31: 0 | K31: 0 | L31: 0 | M31: 40 | N31: 39 | O31: 0 | P31: 0 | S31: =SUM(E31:P31) -> 79 | T31: =(SUM(E31:P31)-SMALL(E31:P31,1)-SMALL(E31:P31,2)-SMALL(E31:P31,3)-SMALL(E31:P31,4)-SMALL(E31:P31,5)-SMALL(E31:P31,6)) -> 79
A32: 28 | B32: Elvira Liljeberg | C32: 2004 | D32: Kils SLK | E32: 0 | F32: 0 | G32: 37 | H32: 32 | I32: 0 | J32: 0 | K32: 0 | L32: 0 | M32: 0 | N32: 0 | O32: 0 | P32: 0 | S32: =SUM(E32:P32) -> 69 | T32: =(SUM(E32:P32)-SMALL(E32:P32,1)-SMALL(E32:P32,2)-SMALL(E32:P32,3)-SMALL(E32:P32,4)-SMALL(E32:P32,5)-SMALL(E32:P32,6)) -> 69
A33: 29 | B33: Lisa Lönntorp | C33: 2004 | D33: Kils SLK | E33: 0 | F33: 0 | G33: 34 | H33: 0 | I33: 0 | J33: 29 | K33: 0 | L33: 0 | M33: 0 | N33: 0 | O33: 0 | P33: 0 | S33: =SUM(E33:P33) -> 63 | T33: =(SUM(E33:P33)-SMALL(E33:P33,1)-SMALL(E33:P33,2)-SMALL(E33:P33,3)-SMALL(E33:P33,4)-SMALL(E33:P33,5)-SMALL(E33:P33,6)) -> 63
A34: 30 | B34: Anna Hedell | C34: 2005 | D34: Valfjällets SLK | E34: 0 | F34: 0 | G34: 0 | H34: 0 | I34: 0 | J34: 0 | K34: 0 | L34: 0 | M34: 0 | N34: 31 | O34: 0 | P34: 0 | S34: =SUM(E34:P34) -> 31 | T34: =(SUM(E34:P34)-SMALL(E34:P34,1)-SMALL(E34:P34,2)-SMALL(E34:P34,3)-SMALL(E34:P34,4)-SMALL(E34:P34,5)-SMALL(E34:P34,6)) -> 31
A35: 31 | E35: 0 | F35: 0 | G35: 0 | H35: 0 | I35: 0 | J35: 0 | K35: 0 | L35: 0 | M35: 0 | N35: 0 | O35: 0 | P35: 0 | S35: =SUM(E35:P35) -> 0 | T35: =(SUM(E35:P35)-SMALL(E35:P35,1)-SMALL(E35:P35,2)-SMALL(E35:P35,3)-SMALL(E35:P35,4)-SMALL(E35:P35,5)-SMALL(E35:P35,6)) -> 0
A36: 32 | E36: 0 | F36: 0 | G36: 0 | H36: 0 | I36: 0 | J36: 0 | K36: 0 | L36: 0 | M36: 0 | N36: 0 | O36: 0 | P36: 0 | S36: =SUM(E36:P36) -> 0 | T36: =(SUM(E36:P36)-SMALL(E36:P36,1)-SMALL(E36:P36,2)-SMALL(E36:P36,3)-SMALL(E36:P36,4)-SMALL(E36:P36,5)-SMALL(E36:P36,6)) -> 0
A37: 33 | E37: 0 | F37: 0 | G37: 0 | H37: 0 | I37: 0 | J37: 0 | K37: 0 | L37: 0 | M37: 0 | N37: 0 | O37: 0 | P37: 0 | S37: =SUM(E37:P37) -> 0 | T37: =(SUM(E37:P37)-SMALL(E37:P37,1)-SMALL(E37:P37,2)-SMALL(E37:P37,3)-SMALL(E37:P37,4)-SMALL(E37:P37,5)-SMALL(E37:P37,6)) -> 0
A38: 34 | E38: 0 | F38: 0 | G38: 0 | H38: 0 | I38: 0 | J38: 0 | K38: 0 | L38: 0 | M38: 0 | N38: 0 | O38: 0 | P38: 0 | S38: =SUM(E38:P38) -> 0 | T38: =(SUM(E38:P38)-SMALL(E38:P38,1)-SMALL(E38:P38,2)-SMALL(E38:P38,3)-SMALL(E38:P38,4)-SMALL(E38:P38,5)-SMALL(E38:P38,6)) -> 0
A39: 35 | E39: 0 | F39: 0 | G39: 0 | H39: 0 | I39: 0 | J39: 0 | K39: 0 | L39: 0 | M39: 0 | N39: 0 | O39: 0 | P39: 0 | S39: =SUM(E39:P39) -> 0 | T39: =(SUM(E39:P39)-SMALL(E39:P39,1)-SMALL(E39:P39,2)-SMALL(E39:P39,3)-SMALL(E39:P39,4)-SMALL(E39:P39,5)-SMALL(E39:P39,6)) -> 0
A40: 36 | E40: 0 | F40: 0 | G40: 0 | H40: 0 | I40: 0 | J40: 0 | K40: 0 | L40: 0 | M40: 0 | N40: 0 | O40: 0 | P40: 0 | S40: =SUM(E40:P40) -> 0 | T40: =(SUM(E40:P40)-SMALL(E40:P40,1)-SMALL(E40:P40,2)-SMALL(E40:P40,3)-SMALL(E40:P40,4)-SMALL(E40:P40,5)-SMALL(E40:P40,6)) -> 0
A41: 37 | E41: 0 | F41: 0 | G41: 0 | H41: 0 | I41: 0 | J41: 0 | K41: 0 | L41: 0 | M41: 0 | N41: 0 | O41: 0 | P41: 0 | S41: =SUM(E41:P41) -> 0 | T41: =(SUM(E41:P41)-SMALL(E41:P41,1)-SMALL(E41:P41,2)-SMALL(E41:P41,3)-SMALL(E41:P41,4)-SMALL(E41:P41,5)-SMALL(E41:P41,6)) -> 0
A42: 38 | E42: 0 | F42: 0 | G42: 0 | H42: 0 | I42: 0 | J42: 0 | K42: 0 | L42: 0 | M42: 0 | N42: 0 | O42: 0 | P42: 0 | S42: =SUM(E42:P42) -> 0 | T42: =(SUM(E42:P42)-SMALL(E42:P42,1)-SMALL(E42:P42,2)-SMALL(E42:P42,3)-SMALL(E42:P42,4)-SMALL(E42:P42,5)-SMALL(E42:P42,6)) -> 0
A43: 39 | E43: 0 | F43: 0 | G43: 0 | H43: 0 | I43: 0 | J43: 0 | K43: 0 | L43: 0 | M43: 0 | N43: 0 | O43: 0 | P43: 0 | Q43: 0 | R43: 0 | S43: =SUM(E43:P43) -> 0 | T43: =(SUM(E43:P43)-SMALL(E43:P43,1)-SMALL(E43:P43,2)-SMALL(E43:P43,3)-SMALL(E43:P43,4)-SMALL(E43:P43,5)-SMALL(E43:P43,6)) -> 0
A44: 40 | E44: 0 | F44: 0 | G44: 0 | H44: 0 | I44: 0 | J44: 0 | K44: 0 | L44: 0 | M44: 0 | N44: 0 | O44: 0 | P44: 0 | Q44: 0 | R44: 0 | S44: =SUM(E44:P44) -> 0 | T44: =(SUM(E44:P44)-SMALL(E44:P44,1)-SMALL(E44:P44,2)-SMALL(E44:P44,3)-SMALL(E44:P44,4)-SMALL(E44:P44,5)-SMALL(E44:P44,6)) -> 0
A45: 41 | E45: 0 | F45: 0 | G45: 0 | H45: 0 | I45: 0 | J45: 0 | K45: 0 | L45: 0 | M45: 0 | N45: 0 | O45: 0 | P45: 0 | Q45: 0 | R45: 0 | S45: =SUM(E45:P45) -> 0 | T45: =(SUM(E45:P45)-SMALL(E45:P45,1)-SMALL(E45:P45,2)-SMALL(E45:P45,3)-SMALL(E45:P45,4)-SMALL(E45:P45,5)-SMALL(E45:P45,6)) -> 0
A46: 42 | E46: 0 | F46: 0 | G46: 0 | H46: 0 | I46: 0 | J46: 0 | K46: 0 | L46: 0 | M46: 0 | N46: 0 | O46: 0 | P46: 0 | Q46: 0 | R46: 0 | S46: =SUM(E46:P46) -> 0 | T46: =(SUM(E46:P46)-SMALL(E46:P46,1)-SMALL(E46:P46,2)-SMALL(E46:P46,3)-SMALL(E46:P46,4)-SMALL(E46:P46,5)-SMALL(E46:P46,6)) -> 0
A47: 43 | E47: 0 | F47: 0 | G47: 0 | H47: 0 | I47: 0 | J47: 0 | K47: 0 | L47: 0 | M47: 0 | N47: 0 | O47: 0 | P47: 0 | Q47: 0 | R47: 0 | S47: =SUM(E47:P47) -> 0 | T47: =(SUM(E47:P47)-SMALL(E47:P47,1)-SMALL(E47:P47,2)-SMALL(E47:P47,3)-SMALL(E47:P47,4)-SMALL(E47:P47,5)-SMALL(E47:P47,6)) -> 0
A48: 44 | E48: 0 | F48: 0 | G48: 0 | H48: 0 | I48: 0 | J48: 0 | K48: 0 | L48: 0 | M48: 0 | N48: 0 | O48: 0 | P48: 0 | Q48: 0 | R48: 0 | S48: =SUM(E48:P48) -> 0 | T48: =(SUM(E48:P48)-SMALL(E48:P48,1)-SMALL(E48:P48,2)-SMALL(E48:P48,3)-SMALL(E48:P48,4)-SMALL(E48:P48,5)-SMALL(E48:P48,6)) -> 0
A49: 45 | E49: 0 | F49: 0 | G49: 0 | H49: 0 | I49: 0 | J49: 0 | K49: 0 | L49: 0 | M49: 0 | N49: 0 | O49: 0 | P49: 0 | Q49: 0 | R49: 0 | S49: =SUM(E49:P49) -> 0 | T49: =(SUM(E49:P49)-SMALL(E49:P49,1)-SMALL(E49:P49,2)-SMALL(E49:P49,3)-SMALL(E49:P49,4)-SMALL(E49:P49,5)-SMALL(E49:P49,6)) -> 0
A50: 46 | E50: 0 | F50: 0 | G50: 0 | H50: 0 | I50: 0 | J50: 0 | K50: 0 | L50: 0 | M50: 0 | N50: 0 | O50: 0 | P50: 0 | Q50: 0 | R50: 0 | S50: =SUM(E50:P50) -> 0 | T50: =(SUM(E50:P50)-SMALL(E50:P50,1)-SMALL(E50:P50,2)-SMALL(E50:P50,3)-SMALL(E50:P50,4)-SMALL(E50:P50,5)-SMALL(E50:P50,6)) -> 0
A51: 47 | E51: 0 | F51: 0 | G51: 0 | H51: 0 | I51: 0 | J51: 0 | K51: 0 | L51: 0 | M51: 0 | N51: 0 | O51: 0 | P51: 0 | Q51: 0 | R51: 0 | S51: =SUM(E51:P51) -> 0 | T51: =(SUM(E51:P51)-SMALL(E51:P51,1)-SMALL(E51:P51,2)-SMALL(E51:P51,3)-SMALL(E51:P51,4)-SMALL(E51:P51,5)-SMALL(E51:P51,6)) -> 0
A52: 48 | E52: 0 | F52: 0 | G52: 0 | H52: 0 | I52: 0 | J52: 0 | K52: 0 | L52: 0 | M52: 0 | N52: 0 | O52: 0 | P52: 0 | Q52: 0 | R52: 0 | S52: =SUM(E52:P52) -> 0 | T52: =(SUM(E52:P52)-SMALL(E52:P52,1)-SMALL(E52:P52,2)-SMALL(E52:P52,3)-SMALL(E52:P52,4)-SMALL(E52:P52,5)-SMALL(E52:P52,6)) -> 0
A53: 49 | E53: 0 | F53: 0 | G53: 0 | H53: 0 | I53: 0 | J53: 0 | K53: 0 | L53: 0 | M53: 0 | N53: 0 | O53: 0 | P53: 0 | Q53: 0 | R53: 0 | S53: =SUM(E53:P53) -> 0 | T53: =(SUM(E53:P53)-SMALL(E53:P53,1)-SMALL(E53:P53,2)-SMALL(E53:P53,3)-SMALL(E53:P53,4)-SMALL(E53:P53,5)-SMALL(E53:P53,6)) -> 0
A54: 50 | E54: 0 | F54: 0 | G54: 0 | H54: 0 | I54: 0 | J54: 0 | K54: 0 | L54: 0 | M54: 0 | N54: 0 | O54: 0 | P54: 0 | Q54: 0 | R54: 0 | S54: =SUM(E54:P54) -> 0 | T54: =(SUM(E54:P54)-SMALL(E54:P54,1)-SMALL(E54:P54,2)-SMALL(E54:P54,3)-SMALL(E54:P54,4)-SMALL(E54:P54,5)-SMALL(E54:P54,6)) -> 0
A55: 51 | E55: 0 | F55: 0 | G55: 0 | H55: 0 | I55: 0 | J55: 0 | K55: 0 | L55: 0 | M55: 0 | N55: 0 | O55: 0 | P55: 0 | Q55: 0 | R55: 0 | S55: =SUM(E55:P55) -> 0 | T55: =(SUM(E55:P55)-SMALL(E55:P55,1)-SMALL(E55:P55,2)-SMALL(E55:P55,3)-SMALL(E55:P55,4)-SMALL(E55:P55,5)-SMALL(E55:P55,6)) -> 0
A56: 52 | E56: 0 | F56: 0 | G56: 0 | H56: 0 | I56: 0 | J56: 0 | K56: 0 | L56: 0 | M56: 0 | N56: 0 | O56: 0 | P56: 0 | Q56: 0 | R56: 0 | S56: =SUM(E56:P56) -> 0 | T56: =(SUM(E56:P56)-SMALL(E56:P56,1)-SMALL(E56:P56,2)-SMALL(E56:P56,3)-SMALL(E56:P56,4)-SMALL(E56:P56,5)-SMALL(E56:P56,6)) -> 0
A57: 53 | E57: 0 | F57: 0 | G57: 0 | H57: 0 | I57: 0 | J57: 0 | K57: 0 | L57: 0 | M57: 0 | N57: 0 | O57: 0 | P57: 0 | Q57: 0 | R57: 0 | S57: =SUM(E57:P57) -> 0 | T57: =(SUM(E57:P57)-SMALL(E57:P57,1)-SMALL(E57:P57,2)-SMALL(E57:P57,3)-SMALL(E57:P57,4)-SMALL(E57:P57,5)-SMALL(E57:P57,6)) -> 0
A58: 54 | E58: 0 | F58: 0 | G58: 0 | H58: 0 | I58: 0 | J58: 0 | K58: 0 | L58: 0 | M58: 0 | N58: 0 | O58: 0 | P58: 0 | Q58: 0 | R58: 0 | S58: =SUM(E58:P58) -> 0 | T58: =(SUM(E58:P58)-SMALL(E58:P58,1)-SMALL(E58:P58,2)-SMALL(E58:P58,3)-SMALL(E58:P58,4)-SMALL(E58:P58,5)-SMALL(E58:P58,6)) -> 0
A59: 55 | E59: 0 | F59: 0 | G59: 0 | H59: 0 | I59: 0 | J59: 0 | K59: 0 | L59: 0 | M59: 0 | N59: 0 | O59: 0 | P59: 0 | Q59: 0 | R59: 0 | S59: =SUM(E59:P59) -> 0 | T59: =(SUM(E59:P59)-SMALL(E59:P59,1)-SMALL(E59:P59,2)-SMALL(E59:P59,3)-SMALL(E59:P59,4)-SMALL(E59:P59,5)-SMALL(E59:P59,6)) -> 0
A60: 56 | E60: 0 | F60: 0 | G60: 0 | H60: 0 | I60: 0 | J60: 0 | K60: 0 | L60: 0 | M60: 0 | N60: 0 | O60: 0 | P60: 0 | Q60: 0 | R60: 0 | S60: =SUM(E60:P60) -> 0 | T60: =(SUM(E60:P60)-SMALL(E60:P60,1)-SMALL(E60:P60,2)-SMALL(E60:P60,3)-SMALL(E60:P60,4)-SMALL(E60:P60,5)-SMALL(E60:P60,6)) -> 0
A61: 57 | E61: 0 | F61: 0 | G61: 0 | H61: 0 | I61: 0 | J61: 0 | K61: 0 | L61: 0 | M61: 0 | N61: 0 | O61: 0 | P61: 0 | Q61: 0 | R61: 0 | S61: =SUM(E61:P61) -> 0 | T61: =(SUM(E61:P61)-SMALL(E61:P61,1)-SMALL(E61:P61,2)-SMALL(E61:P61,3)-SMALL(E61:P61,4)-SMALL(E61:P61,5)-SMALL(E61:P61,6)) -> 0
A62: 58 | E62: 0 | F62: 0 | G62: 0 | H62: 0 | I62: 0 | J62: 0 | K62: 0 | L62: 0 | M62: 0 | N62: 0 | O62: 0 | P62: 0 | Q62: 0 | R62: 0 | S62: =SUM(E62:P62) -> 0 | T62: =(SUM(E62:P62)-SMALL(E62:P62,1)-SMALL(E62:P62,2)-SMALL(E62:P62,3)-SMALL(E62:P62,4)-SMALL(E62:P62,5)-SMALL(E62:P62,6)) -> 0
A63: 59 | E63: 0 | F63: 0 | G63: 0 | H63: 0 | I63: 0 | J63: 0 | K63: 0 | L63: 0 | M63: 0 | N63: 0 | O63: 0 | P63: 0 | Q63: 0 | R63: 0 | S63: =SUM(E63:P63) -> 0 | T63: =(SUM(E63:P63)-SMALL(E63:P63,1)-SMALL(E63:P63,2)-SMALL(E63:P63,3)-SMALL(E63:P63,4)-SMALL(E63:P63,5)-SMALL(E63:P63,6)) -> 0
A64: 60 | E64: 0 | F64: 0 | G64: 0 | H64: 0 | I64: 0 | J64: 0 | K64: 0 | L64: 0 | M64: 0 | N64: 0 | O64: 0 | P64: 0 | Q64: 0 | R64: 0 | S64: =SUM(E64:P64) -> 0 | T64: =(SUM(E64:P64)-SMALL(E64:P64,1)-SMALL(E64:P64,2)-SMALL(E64:P64,3)-SMALL(E64:P64,4)-SMALL(E64:P64,5)-SMALL(E64:P64,6)) -> 0

Sheet P U12
A1: LVC-sammanställning Värmland 2016 | R1: Ändra ej i grå fält
E2: Branäs | G2: Kil | I2: Sunne | K2: Sunne | M2: Valfjället | O2: Grums | Q2: Grums
A3: Klass: | B3: Pojkar U12 | E3: GS1 | F3: GS2 | G3: SL1 | H3: SL2 | I3: GS3 | J3: GS4 | K3: SG1 | L3: SG2 | M3: SG3 | N3: SG4 | O3: SL3 | P3: SL4 | Q3: SL5 | R3: SL6
A4: Plac | B4: Namn | C4: År | D4: Klubb | E4: 1 | F4: 2 | G4: 3 | H4: 4 | I4: 5 | J4: 6 | K4: 7 | L4: 8 | M4: 9 | N4: 10 | O4: 11 | P4: 12 | Q4: 13 | R4: 14 | S4: Tot: | T4: 6 Bästa
A5: 1 | B5: Filip Aronsson Elfman | C5: 2005 | D5: Kils SLK | E5: 80 | F5: 100 | G5: 100 | H5: 100 | I5: 100 | J5: 100 | K5: 70 | L5: 0 | M5: 70 | N5: 100 | O5: 0 | P5: 0 | S5: =SUM(E5:P5) -> 820 | T5: =(SUM(E5:P5)-SMALL(E5:P5,1)-SMALL(E5:P5,2)-SMALL(E5:P5,3)-SMALL(E5:P5,4)-SMALL(E5:P5,5)-SMALL(E5:P5,6)) -> 600
A6: 2 | B6: Oscar Söderberg | C6: 2004 | D6: Valfjällets SLK | E6: 0 | F6: 0 | G6: 80 | H6: 80 | I6: 70 | J6: 70 | K6: 100 | L6: 100 | M6: 100 | N6: 70 | O6: 0 | P6: 0 | S6: =SUM(E6:P6) -> 670 | T6: =(SUM(E6:P6)-SMALL(E6:P6,1)-SMALL(E6:P6,2)-SMALL(E6:P6,3)-SMALL(E6:P6,4)-SMALL(E6:P6,5)-SMALL(E6:P6,6)) -> 530
A7: 3 | B7: Filip Carlsson | C7: 2004 | D7: Karlstads SLK | E7: 100 | F7: 80 | G7: 0 | H7: 0 | I7: 80 | J7: 80 | K7: 80 | L7: 80 | M7: 80 | N7: 100 | O7: 0 | P7: 0 | S7: =SUM(E7:P7) -> 680 | T7: =(SUM(E7:P7)-SMALL(E7:P7,1)-SMALL(E7:P7,2)-SMALL(E7:P7,3)-SMALL(E7:P7,4)-SMALL(E7:P7,5)-SMALL(E7:P7,6)) -> 520
A8: 4 | B8: Ngoan Roddar | C8: 2004 | D8: Ekshärads SLK | E8: 60 | F8: 70 | G8: 70 | H8: 70 | I8: 0 | J8: 0 | K8: 0 | L8: 70 | M8: 48 | N8: 50 | O8: 0 | P8: 0 | S8: =SUM(E8:P8) -> 438 | T8: =(SUM(E8:P8)-SMALL(E8:P8,1)-SMALL(E8:P8,2)-SMALL(E8:P8,3)-SMALL(E8:P8,4)-SMALL(E8:P8,5)-SMALL(E8:P8,6)) -> 390
A9: 5 | B9: Gustav Lundgren | C9: 2005 | D9: Karlstads SLK | E9: 70 | F9: 60 | G9: 0 | H9: 60 | I9: 60 | J9: 60 | K9: 60 | L9: 50 | M9: 60 | N9: 60 | O9: 0 | P9: 0 | S9: =SUM(E9:P9) -> 540 | T9: =(SUM(E9:P9)-SMALL(E9:P9,1)-SMALL(E9:P9,2)-SMALL(E9:P9,3)-SMALL(E9:P9,4)-SMALL(E9:P9,5)-SMALL(E9:P9,6)) -> 370
A10: 6 | B10: Oliver Noresäter | C10: 2005 | D10: Deje AK | E10: 55 | F10: 55 | G10: 48 | H10: 48 | I10: 0 | J10: 0 | K10: 55 | L10: 60 | M10: 46 | N10: 55 | O10: 0 | P10: 0 | S10: =SUM(E10:P10) -> 422 | T10: =(SUM(E10:P10)-SMALL(E10:P10,1)-SMALL(E10:P10,2)-SMALL(E10:P10,3)-SMALL(E10:P10,4)-SMALL(E10:P10,5)-SMALL(E10:P10,6)) -> 328
A11: 7 | B11: Arvid Pettersson | C11: 2004 | D11: Kils SLK | E11: 0 | F11: 0 | G11: 60 | H11: 42 | I11: 0 | J11: 0 | K11: 50 | L11: 50 | M11: 55 | N11: 48 | O11: 0 | P11: 0 | S11: =SUM(E11:P11) -> 305 | T11: =(SUM(E11:P11)-SMALL(E11:P11,1)-SMALL(E11:P11,2)-SMALL(E11:P11,3)-SMALL(E11:P11,4)-SMALL(E11:P11,5)-SMALL(E11:P11,6)) -> 305
A12: 8 | B12: Filip Alte | C12: 2004 | D12: Kils SLK | E12: 50 | F12: 50 | G12: 40 | H12: 50 | I12: 50 | J12: 50 | K12: 46 | L12: 44 | M12: 44 | N12: 42 | O12: 0 | P12: 0 | S12: =SUM(E12:P12) -> 466 | T12: =(SUM(E12:P12)-SMALL(E12:P12,1)-SMALL(E12:P12,2)-SMALL(E12:P12,3)-SMALL(E12:P12,4)-SMALL(E12:P12,5)-SMALL(E12:P12,6)) -> 296
A13: 9 | B13: Edvin Lodin | C13: 2005 | D13: Branäs AK | E13: 44 | F13: 44 | G13: 44 | H13: 44 | I13: 46 | J13: 46 | K13: 0 | L13: 0 | M13: 0 | N13: 0 | O13: 0 | P13: 0 | S13: =SUM(E13:P13) -> 268 | T13: =(SUM(E13:P13)-SMALL(E13:P13,1)-SMALL(E13:P13,2)-SMALL(E13:P13,3)-SMALL(E13:P13,4)-SMALL(E13:P13,5)-SMALL(E13:P13,6)) -> 268
A14: 10 | B14: Fritz Karlbäck | C14: 2005 | D14: Hovfjället Ski BK | E14: 48 | F14: 46 | G14: 42 | H14: 39 | I14: 0 | J14: 0 | K14: 44 | L14: 42 | M14: 42 | N14: 44 | O14: 0 | P14: 0 | S14: =SUM(E14:P14) -> 347 | T14: =(SUM(E14:P14)-SMALL(E14:P14,1)-SMALL(E14:P14,2)-SMALL(E14:P14,3)-SMALL(E14:P14,4)-SMALL(E14:P14,5)-SMALL(E14:P14,6)) -> 266
A15: 11 | B15: Carl Nilsson | C15: 2004 | D15: Grums SLK | E15: 0 | F15: 0 | G15: 55 | H15: 55 | I15: 55 | J15: 55 | K15: 0 | L15: 0 | M15: 0 | N15: 0 | O15: 0 | P15: 0 | S15: =SUM(E15:P15) -> 220 | T15: =(SUM(E15:P15)-SMALL(E15:P15,1)-SMALL(E15:P15,2)-SMALL(E15:P15,3)-SMALL(E15:P15,4)-SMALL(E15:P15,5)-SMALL(E15:P15,6)) -> 220
A16: 12 | B16: Melker Arvidsson | C16: 2005 | D16: Karlstads SLK | E16: 0 | F16: 0 | G16: 0 | H16: 0 | I16: 0 | J16: 0 | K16: 48 | L16: 55 | M16: 55 | N16: 46 | O16: 0 | P16: 0 | S16: =SUM(E16:P16) -> 204 | T16: =(SUM(E16:P16)-SMALL(E16:P16,1)-SMALL(E16:P16,2)-SMALL(E16:P16,3)-SMALL(E16:P16,4)-SMALL(E16:P16,5)-SMALL(E16:P16,6)) -> 204
A17: 13 | B17: Olle Halvardsson | C17: 2005 | D17: Branäs AK | E17: 46 | F17: 48 | G17: 0 | H17: 0 | I17: 48 | J17: 48 | K17: 0 | L17: 0 | M17: 0 | N17: 0 | O17: 0 | P17: 0 | S17: =SUM(E17:P17) -> 190 | T17: =(SUM(E17:P17)-SMALL(E17:P17,1)-SMALL(E17:P17,2)-SMALL(E17:P17,3)-SMALL(E17:P17,4)-SMALL(E17:P17,5)-SMALL(E17:P17,6)) -> 190
A18: 14 | B18: Ville Hämquist | C18: 2004 | D18: Kils SLK | E18: 42 | F18: 42 | G18: 46 | H18: 40 | I18: 0 | J18: 0 | K18: 0 | L18: 0 | M18: 0 | N18: 0 | O18: 0 | P18: 0 | S18: =SUM(E18:P18) -> 170 | T18: =(SUM(E18:P18)-SMALL(E18:P18,1)-SMALL(E18:P18,2)-SMALL(E18:P18,3)-SMALL(E18:P18,4)-SMALL(E18:P18,5)-SMALL(E18:P18,6)) -> 170
A19: 15 | B19: Filip Samuelsson | C19: 2004 | D19: Kils SLK | E19: 0 | F19: 0 | G19: 50 | H19: 46 | I19: 0 | J19: 0 | K19: 0 | L19: 46 | M19: 0 | N19: 0 | O19: 0 | P19: 0 | S19: =SUM(E19:P19) -> 142 | T19: =(SUM(E19:P19)-SMALL(E19:P19,1)-SMALL(E19:P19,2)-SMALL(E19:P19,3)-SMALL(E19:P19,4)-SMALL(E19:P19,5)-SMALL(E19:P19,6)) -> 142
A20: 16 | E20: 0 | F20: 0 | G20: 0 | H20: 0 | I20: 0 | J20: 0 | K20: 0 | L20: 0 | M20: 0 | N20: 0 | O20: 0 | P20: 0 | S20: =SUM(E20:P20) -> 0 | T20: =(SUM(E20:P20)-SMALL(E20:P20,1)-SMALL(E20:P20,2)-SMALL(E20:P20,3)-SMALL(E20:P20,4)-SMALL(E20:P20,5)-SMALL(E20:P20,6)) -> 0
A21: 17 | E21: 0 | F21: 0 | G21: 0 | H21: 0 | I21: 0 | J21: 0 | K21: 0 | L21: 0 | M21: 0 | N21: 0 | O21: 0 | P21: 0 | S21: =SUM(E21:P21) -> 0 | T21: =(SUM(E21:P21)-SMALL(E21:P21,1)-SMALL(E21:P21,2)-SMALL(E21:P21,3)-SMALL(E21:P21,4)-SMALL(E21:P21,5)-SMALL(E21:P21,6)) -> 0
A22: 18 | E22: 0 | F22: 0 | G22: 0 | H22: 0 | I22: 0 | J22: 0 | K22: 0 | L22: 0 | M22: 0 | N22: 0 | O22: 0 | P22: 0 | S22: =SUM(E22:P22) -> 0 | T22: =(SUM(E22:P22)-SMALL(E22:P22,1)-SMALL(E22:P22,2)-SMALL(E22:P22,3)-SMALL(E22:P22,4)-SMALL(E22:P22,5)-SMALL(E22:P22,6)) -> 0
A23: 19 | E23: 0 | F23: 0 | G23: 0 | H23: 0 | I23: 0 | J23: 0 | K23: 0 | L23: 0 | M23: 0 | N23: 0 | O23: 0 | P23: 0 | S23: =SUM(E23:P23) -> 0 | T23: =(SUM(E23:P23)-SMALL(E23:P23,1)-SMALL(E23:P23,2)-SMALL(E23:P23,3)-SMALL(E23:P23,4)-SMALL(E23:P23,5)-SMALL(E23:P23,6)) -> 0
A24: 20 | E24: 0 | F24: 0 | G24: 0 | H24: 0 | I24: 0 | J24: 0 | K24: 0 | L24: 0 | M24: 0 | N24: 0 | O24: 0 | P24: 0 | S24: =SUM(E24:P24) -> 0 | T24: =(SUM(E24:P24)-SMALL(E24:P24,1)-SMALL(E24:P24,2)-SMALL(E24:P24,3)-SMALL(E24:P24,4)-SMALL(E24:P24,5)-SMALL(E24:P24,6)) -> 0
A25: 21 | E25: 0 | F25: 0 | G25: 0 | H25: 0 | I25: 0 | J25: 0 | K25: 0 | L25: 0 | M25: 0 | N25: 0 | O25: 0 | P25: 0 | S25: =SUM(E25:P25) -> 0 | T25: =(SUM(E25:P25)-SMALL(E25:P25,1)-SMALL(E25:P25,2)-SMALL(E25:P25,3)-SMALL(E25:P25,4)-SMALL(E25:P25,5)-SMALL(E25:P25,6)) -> 0
A26: 22 | E26: 0 | F26: 0 | G26: 0 | H26: 0 | I26: 0 | J26: 0 | K26: 0 | L26: 0 | M26: 0 | N26: 0 | O26: 0 | P26: 0 | S26: =SUM(E26:P26) -> 0 | T26: =(SUM(E26:P26)-SMALL(E26:P26,1)-SMALL(E26:P26,2)-SMALL(E26:P26,3)-SMALL(E26:P26,4)-SMALL(E26:P26,5)-SMALL(E26:P26,6)) -> 0
A27: 23 | E27: 0 | F27: 0 | G27: 0 | H27: 0 | I27: 0 | J27: 0 | K27: 0 | L27: 0 | M27: 0 | N27: 0 | O27: 0 | P27: 0 | S27: =SUM(E27:P27) -> 0 | T27: =(SUM(E27:P27)-SMALL(E27:P27,1)-SMALL(E27:P27,2)-SMALL(E27:P27,3)-SMALL(E27:P27,4)-SMALL(E27:P27,5)-SMALL(E27:P27,6)) -> 0
A28: 24 | E28: 0 | F28: 0 | G28: 0 | H28: 0 | I28: 0 | J28: 0 | K28: 0 | L28: 0 | M28: 0 | N28: 0 | O28: 0 | P28: 0 | S28: =SUM(E28:P28) -> 0 | T28: =(SUM(E28:P28)-SMALL(E28:P28,1)-SMALL(E28:P28,2)-SMALL(E28:P28,3)-SMALL(E28:P28,4)-SMALL(E28:P28,5)-SMALL(E28:P28,6)) -> 0
A29: 25 | E29: 0 | F29: 0 | G29: 0 | H29: 0 | I29: 0 | J29: 0 | K29: 0 | L29: 0 | M29: 0 | N29: 0 | O29: 0 | P29: 0 | S29: =SUM(E29:P29) -> 0 | T29: =(SUM(E29:P29)-SMALL(E29:P29,1)-SMALL(E29:P29,2)-SMALL(E29:P29,3)-SMALL(E29:P29,4)-SMALL(E29:P29,5)-SMALL(E29:P29,6)) -> 0
A30: 26 | E30: 0 | F30: 0 | G30: 0 | H30: 0 | I30: 0 | J30: 0 | K30: 0 | L30: 0 | M30: 0 | N30: 0 | O30: 0 | P30: 0 | S30: =SUM(E30:P30) -> 0 | T30: =(SUM(E30:P30)-SMALL(E30:P30,1)-SMALL(E30:P30,2)-SMALL(E30:P30,3)-SMALL(E30:P30,4)-SMALL(E30:P30,5)-SMALL(E30:P30,6)) -> 0
A31: 27 | E31: 0 | F31: 0 | G31: 0 | H31: 0 | I31: 0 | J31: 0 | K31: 0 | L31: 0 | M31: 0 | N31: 0 | O31: 0 | P31: 0 | S31: =SUM(E31:P31) -> 0 | T31: =(SUM(E31:P31)-SMALL(E31:P31,1)-SMALL(E31:P31,2)-SMALL(E31:P31,3)-SMALL(E31:P31,4)-SMALL(E31:P31,5)-SMALL(E31:P31,6)) -> 0
A32: 28 | E32: 0 | F32: 0 | G32: 0 | H32: 0 | I32: 0 | J32: 0 | K32: 0 | L32: 0 | M32: 0 | N32: 0 | O32: 0 | P32: 0 | S32: =SUM(E32:P32) -> 0 | T32: =(SUM(E32:P32)-SMALL(E32:P32,1)-SMALL(E32:P32,2)-SMALL(E32:P32,3)-SMALL(E32:P32,4)-SMALL(E32:P32,5)-SMALL(E32:P32,6)) -> 0
A33: 29 | E33: 0 | F33: 0 | G33: 0 | H33: 0 | I33: 0 | J33: 0 | K33: 0 | L33: 0 | M33: 0 | N33: 0 | O33: 0 | P33: 0 | S33: =SUM(E33:P33) -> 0 | T33: =(SUM(E33:P33)-SMALL(E33:P33,1)-SMALL(E33:P33,2)-SMALL(E33:P33,3)-SMALL(E33:P33,4)-SMALL(E33:P33,5)-SMALL(E33:P33,6)) -> 0
A34: 30 | E34: 0 | F34: 0 | G34: 0 | H34: 0 | I34: 0 | J34: 0 | K34: 0 | L34: 0 | M34: 0 | N34: 0 | O34: 0 | P34: 0 | S34: =SUM(E34:P34) -> 0 | T34: =(SUM(E34:P34)-SMALL(E34:P34,1)-SMALL(E34:P34,2)-SMALL(E34:P34,3)-SMALL(E34:P34,4)-SMALL(E34:P34,5)-SMALL(E34:P34,6)) -> 0
A35: 31 | E35: 0 | F35: 0 | G35: 0 | H35: 0 | I35: 0 | J35: 0 | K35: 0 | L35: 0 | M35: 0 | N35: 0 | O35: 0 | P35: 0 | S35: =SUM(E35:P35) -> 0 | T35: =(SUM(E35:P35)-SMALL(E35:P35,1)-SMALL(E35:P35,2)-SMALL(E35:P35,3)-SMALL(E35:P35,4)-SMALL(E35:P35,5)-SMALL(E35:P35,6)) -> 0
A36: 32 | E36: 0 | F36: 0 | G36: 0 | H36: 0 | I36: 0 | J36: 0 | K36: 0 | L36: 0 | M36: 0 | N36: 0 | O36: 0 | P36: 0 | S36: =SUM(E36:P36) -> 0 | T36: =(SUM(E36:P36)-SMALL(E36:P36,1)-SMALL(E36:P36,2)-SMALL(E36:P36,3)-SMALL(E36:P36,4)-SMALL(E36:P36,5)-SMALL(E36:P36,6)) -> 0
A37: 33 | E37: 0 | F37: 0 | G37: 0 | H37: 0 | I37: 0 | J37: 0 | K37: 0 | L37: 0 | M37: 0 | N37: 0 | O37: 0 | P37: 0 | S37: =SUM(E37:P37) -> 0 | T37: =(SUM(E37:P37)-SMALL(E37:P37,1)-SMALL(E37:P37,2)-SMALL(E37:P37,3)-SMALL(E37:P37,4)-SMALL(E37:P37,5)-SMALL(E37:P37,6)) -> 0
A38: 34 | E38: 0 | F38: 0 | G38: 0 | H38: 0 | I38: 0 | J38: 0 | K38: 0 | L38: 0 | M38: 0 | N38: 0 | O38: 0 | P38: 0 | S38: =SUM(E38:P38) -> 0 | T38: =(SUM(E38:P38)-SMALL(E38:P38,1)-SMALL(E38:P38,2)-SMALL(E38:P38,3)-SMALL(E38:P38,4)-SMALL(E38:P38,5)-SMALL(E38:P38,6)) -> 0
A39: 35 | E39: 0 | F39: 0 | G39: 0 | H39: 0 | I39: 0 | J39: 0 | K39: 0 | L39: 0 | M39: 0 | N39: 0 | O39: 0 | P39: 0 | S39: =SUM(E39:P39) -> 0 | T39: =(SUM(E39:P39)-SMALL(E39:P39,1)-SMALL(E39:P39,2)-SMALL(E39:P39,3)-SMALL(E39:P39,4)-SMALL(E39:P39,5)-SMALL(E39:P39,6)) -> 0
A40: 36 | E40: 0 | F40: 0 | G40: 0 | H40: 0 | I40: 0 | J40: 0 | K40: 0 | L40: 0 | M40: 0 | N40: 0 | O40: 0 | P40: 0 | S40: =SUM(E40:P40) -> 0 | T40: =(SUM(E40:P40)-SMALL(E40:P40,1)-SMALL(E40:P40,2)-SMALL(E40:P40,3)-SMALL(E40:P40,4)-SMALL(E40:P40,5)-SMALL(E40:P40,6)) -> 0
A41: 37 | E41: 0 | F41: 0 | G41: 0 | H41: 0 | I41: 0 | J41: 0 | K41: 0 | L41: 0 | M41: 0 | N41: 0 | O41: 0 | P41: 0 | S41: =SUM(E41:P41) -> 0 | T41: =(SUM(E41:P41)-SMALL(E41:P41,1)-SMALL(E41:P41,2)-SMALL(E41:P41,3)-SMALL(E41:P41,4)-SMALL(E41:P41,5)-SMALL(E41:P41,6)) -> 0
A42: 38 | E42: 0 | F42: 0 | G42: 0 | H42: 0 | I42: 0 | J42: 0 | K42: 0 | L42: 0 | M42: 0 | N42: 0 | O42: 0 | P42: 0 | S42: =SUM(E42:P42) -> 0 | T42: =(SUM(E42:P42)-SMALL(E42:P42,1)-SMALL(E42:P42,2)-SMALL(E42:P42,3)-SMALL(E42:P42,4)-SMALL(E42:P42,5)-SMALL(E42:P42,6)) -> 0
A43: 39 | E43: 0 | F43: 0 | G43: 0 | H43: 0 | I43: 0 | J43: 0 | K43: 0 | L43: 0 | M43: 0 | N43: 0 | O43: 0 | P43: 0 | S43: =SUM(E43:P43) -> 0 | T43: =(SUM(E43:P43)-SMALL(E43:P43,1)-SMALL(E43:P43,2)-SMALL(E43:P43,3)-SMALL(E43:P43,4)-SMALL(E43:P43,5)-SMALL(E43:P43,6)) -> 0
A44: 40 | E44: 0 | F44: 0 | G44: 0 | H44: 0 | I44: 0 | J44: 0 | K44: 0 | L44: 0 | M44: 0 | N44: 0 | O44: 0 | P44: 0 | S44: =SUM(E44:P44) -> 0 | T44: =(SUM(E44:P44)-SMALL(E44:P44,1)-SMALL(E44:P44,2)-SMALL(E44:P44,3)-SMALL(E44:P44,4)-SMALL(E44:P44,5)-SMALL(E44:P44,6)) -> 0
A45: 41 | E45: 0 | F45: 0 | G45: 0 | H45: 0 | I45: 0 | J45: 0 | K45: 0 | L45: 0 | M45: 0 | N45: 0 | O45: 0 | P45: 0 | S45: =SUM(E45:P45) -> 0 | T45: =(SUM(E45:P45)-SMALL(E45:P45,1)-SMALL(E45:P45,2)-SMALL(E45:P45,3)-SMALL(E45:P45,4)-SMALL(E45:P45,5)-SMALL(E45:P45,6)) -> 0
A46: 42 | E46: 0 | F46: 0 | G46: 0 | H46: 0 | I46: 0 | J46: 0 | K46: 0 | L46: 0 | M46: 0 | N46: 0 | O46: 0 | P46: 0 | S46: =SUM(E46:P46) -> 0 | T46: =(SUM(E46:P46)-SMALL(E46:P46,1)-SMALL(E46:P46,2)-SMALL(E46:P46,3)-SMALL(E46:P46,4)-SMALL(E46:P46,5)-SMALL(E46:P46,6)) -> 0
A47: 43 | E47: 0 | F47: 0 | G47: 0 | H47: 0 | I47: 0 | J47: 0 | K47: 0 | L47: 0 | M47: 0 | N47: 0 | O47: 0 | P47: 0 | S47: =SUM(E47:P47) -> 0 | T47: =(SUM(E47:P47)-SMALL(E47:P47,1)-SMALL(E47:P47,2)-SMALL(E47:P47,3)-SMALL(E47:P47,4)-SMALL(E47:P47,5)-SMALL(E47:P47,6)) -> 0
A48: 44 | E48: 0 | F48: 0 | G48: 0 | H48: 0 | I48: 0 | J48: 0 | K48: 0 | L48: 0 | M48: 0 | N48: 0 | O48: 0 | P48: 0 | S48: =SUM(E48:P48) -> 0 | T48: =(SUM(E48:P48)-SMALL(E48:P48,1)-SMALL(E48:P48,2)-SMALL(E48:P48,3)-SMALL(E48:P48,4)-SMALL(E48:P48,5)-SMALL(E48:P48,6)) -> 0
A49: 45 | E49: 0 | F49: 0 | G49: 0 | H49: 0 | I49: 0 | J49: 0 | K49: 0 | L49: 0 | M49: 0 | N49: 0 | O49: 0 | P49: 0 | S49: =SUM(E49:P49) -> 0 | T49: =(SUM(E49:P49)-SMALL(E49:P49,1)-SMALL(E49:P49,2)-SMALL(E49:P49,3)-SMALL(E49:P49,4)-SMALL(E49:P49,5)-SMALL(E49:P49,6)) -> 0
A50: 46 | E50: 0 | F50: 0 | G50: 0 | H50: 0 | I50: 0 | J50: 0 | K50: 0 | L50: 0 | M50: 0 | N50: 0 | O50: 0 | P50: 0 | S50: =SUM(E50:P50) -> 0 | T50: =(SUM(E50:P50)-SMALL(E50:P50,1)-SMALL(E50:P50,2)-SMALL(E50:P50,3)-SMALL(E50:P50,4)-SMALL(E50:P50,5)-SMALL(E50:P50,6)) -> 0
A51: 47 | E51: 0 | F51: 0 | G51: 0 | H51: 0 | I51: 0 | J51: 0 | K51: 0 | L51: 0 | M51: 0 | N51: 0 | O51: 0 | P51: 0 | S51: =SUM(E51:P51) -> 0 | T51: =(SUM(E51:P51)-SMALL(E51:P51,1)-SMALL(E51:P51,2)-SMALL(E51:P51,3)-SMALL(E51:P51,4)-SMALL(E51:P51,5)-SMALL(E51:P51,6)) -> 0
A52: 48 | E52: 0 | F52: 0 | G52: 0 | H52: 0 | I52: 0 | J52: 0 | K52: 0 | L52: 0 | M52: 0 | N52: 0 | O52: 0 | P52: 0 | S52: =SUM(E52:P52) -> 0 | T52: =(SUM(E52:P52)-SMALL(E52:P52,1)-SMALL(E52:P52,2)-SMALL(E52:P52,3)-SMALL(E52:P52,4)-SMALL(E52:P52,5)-SMALL(E52:P52,6)) -> 0
A53: 49 | E53: 0 | F53: 0 | G53: 0 | H53: 0 | I53: 0 | J53: 0 | K53: 0 | L53: 0 | M53: 0 | N53: 0 | O53: 0 | P53: 0 | S53: =SUM(E53:P53) -> 0 | T53: =(SUM(E53:P53)-SMALL(E53:P53,1)-SMALL(E53:P53,2)-SMALL(E53:P53,3)-SMALL(E53:P53,4)-SMALL(E53:P53,5)-SMALL(E53:P53,6)) -> 0
A54: 50 | E54: 0 | F54: 0 | G54: 0 | H54: 0 | I54: 0 | J54: 0 | K54: 0 | L54: 0 | M54: 0 | N54: 0 | O54: 0 | P54: 0 | S54: =SUM(E54:P54) -> 0 | T54: =(SUM(E54:P54)-SMALL(E54:P54,1)-SMALL(E54:P54,2)-SMALL(E54:P54,3)-SMALL(E54:P54,4)-SMALL(E54:P54,5)-SMALL(E54:P54,6)) -> 0
A55: 51 | E55: 0 | F55: 0 | G55: 0 | H55: 0 | I55: 0 | J55: 0 | K55: 0 | L55: 0 | M55: 0 | N55: 0 | O55: 0 | P55: 0 | S55: =SUM(E55:P55) -> 0 | T55: =(SUM(E55:P55)-SMALL(E55:P55,1)-SMALL(E55:P55,2)-SMALL(E55:P55,3)-SMALL(E55:P55,4)-SMALL(E55:P55,5)-SMALL(E55:P55,6)) -> 0
A56: 52 | E56: 0 | F56: 0 | G56: 0 | H56: 0 | I56: 0 | J56: 0 | K56: 0 | L56: 0 | M56: 0 | N56: 0 | O56: 0 | P56: 0 | S56: =SUM(E56:P56) -> 0 | T56: =(SUM(E56:P56)-SMALL(E56:P56,1)-SMALL(E56:P56,2)-SMALL(E56:P56,3)-SMALL(E56:P56,4)-SMALL(E56:P56,5)-SMALL(E56:P56,6)) -> 0
A57: 53 | E57: 0 | F57: 0 | G57: 0 | H57: 0 | I57: 0 | J57: 0 | K57: 0 | L57: 0 | M57: 0 | N57: 0 | O57: 0 | P57: 0 | S57: =SUM(E57:P57) -> 0 | T57: =(SUM(E57:P57)-SMALL(E57:P57,1)-SMALL(E57:P57,2)-SMALL(E57:P57,3)-SMALL(E57:P57,4)-SMALL(E57:P57,5)-SMALL(E57:P57,6)) -> 0
A58: 54 | E58: 0 | F58: 0 | G58: 0 | H58: 0 | I58: 0 | J58: 0 | K58: 0 | L58: 0 | M58: 0 | N58: 0 | O58: 0 | P58: 0 | S58: =SUM(E58:P58) -> 0 | T58: =(SUM(E58:P58)-SMALL(E58:P58,1)-SMALL(E58:P58,2)-SMALL(E58:P58,3)-SMALL(E58:P58,4)-SMALL(E58:P58,5)-SMALL(E58:P58,6)) -> 0
A59: 55 | E59: 0 | F59: 0 | G59: 0 | H59: 0 | I59: 0 | J59: 0 | K59: 0 | L59: 0 | M59: 0 | N59: 0 | O59: 0 | P59: 0 | S59: =SUM(E59:P59) -> 0 | T59: =(SUM(E59:P59)-SMALL(E59:P59,1)-SMALL(E59:P59,2)-SMALL(E59:P59,3)-SMALL(E59:P59,4)-SMALL(E59:P59,5)-SMALL(E59:P59,6)) -> 0
A60: 56 | E60: 0 | F60: 0 | G60: 0 | H60: 0 | I60: 0 | J60: 0 | K60: 0 | L60: 0 | M60: 0 | N60: 0 | O60: 0 | P60: 0 | S60: =SUM(E60:P60) -> 0 | T60: =(SUM(E60:P60)-SMALL(E60:P60,1)-SMALL(E60:P60,2)-SMALL(E60:P60,3)-SMALL(E60:P60,4)-SMALL(E60:P60,5)-SMALL(E60:P60,6)) -> 0
A61: 57 | E61: 0 | F61: 0 | G61: 0 | H61: 0 | I61: 0 | J61: 0 | K61: 0 | L61: 0 | M61: 0 | N61: 0 | O61: 0 | P61: 0 | S61: =SUM(E61:P61) -> 0 | T61: =(SUM(E61:P61)-SMALL(E61:P61,1)-SMALL(E61:P61,2)-SMALL(E61:P61,3)-SMALL(E61:P61,4)-SMALL(E61:P61,5)-SMALL(E61:P61,6)) -> 0
A62: 58 | E62: 0 | F62: 0 | G62: 0 | H62: 0 | I62: 0 | J62: 0 | K62: 0 | L62: 0 | M62: 0 | N62: 0 | O62: 0 | P62: 0 | S62: =SUM(E62:P62) -> 0 | T62: =(SUM(E62:P62)-SMALL(E62:P62,1)-SMALL(E62:P62,2)-SMALL(E62:P62,3)-SMALL(E62:P62,4)-SMALL(E62:P62,5)-SMALL(E62:P62,6)) -> 0
A63: 59 | E63: 0 | F63: 0 | G63: 0 | H63: 0 | I63: 0 | J63: 0 | K63: 0 | L63: 0 | M63: 0 | N63: 0 | O63: 0 | P63: 0 | S63: =SUM(E63:P63) -> 0 | T63: =(SUM(E63:P63)-SMALL(E63:P63,1)-SMALL(E63:P63,2)-SMALL(E63:P63,3)-SMALL(E63:P63,4)-SMALL(E63:P63,5)-SMALL(E63:P63,6)) -> 0
A64: 60 | E64: 0 | F64: 0 | G64: 0 | H64: 0 | I64: 0 | J64: 0 | K64: 0 | L64: 0 | M64: 0 | N64: 0 | O64: 0 | P64: 0 | S64: =SUM(E64:P64) -> 0 | T64: =(SUM(E64:P64)-SMALL(E64:P64,1)-SMALL(E64:P64,2)-SMALL(E64:P64,3)-SMALL(E64:P64,4)-SMALL(E64:P64,5)-SMALL(E64:P64,6)) -> 0

Sheet F U14
A1: LVC-sammanställning Värmland 2016 | R1: Ändra ej i grå fält
E2: Branäs | G2: Kil | I2: Sunne | K2: Sunne | M2: Valfjället | O2: Grums | Q2: Grums
A3: Klass: | B3: Flickor U14 | E3: GS1 | F3: GS2 | G3: SL1 | H3: SL2 | I3: GS3 | J3: GS4 | K3: SG1 | L3: SG2 | M3: SG3 | N3: SG4 | O3: SL3 | P3: SL4 | Q3: SL5 | R3: SL6
A4: Plac | B4: Namn | C4: År | D4: Klubb | E4: 1 | F4: 2 | G4: 3 | H4: 4 | I4: 5 | J4: 6 | K4: 7 | L4: 8 | M4: 9 | N4: 10 | O4: 11 | P4: 12 | Q4: 13 | R4: 14 | S4: Tot: | T4: 6 Bästa
A5: 1 | B5: Hanna Aronsson Elfman | C5: 2002 | D5: Kils SLK | E5: 100 | F5: 100 | G5: 100 | H5: 100 | I5: 100 | J5: 100 | K5: 100 | L5: 100 | M5: 100 | N5: 100 | O5: 0 | P5: 0 | S5: =SUM(E5:P5) -> 1000 | T5: =(SUM(E5:P5)-SMALL(E5:P5,1)-SMALL(E5:P5,2)-SMALL(E5:P5,3)-SMALL(E5:P5,4)-SMALL(E5:P5,5)-SMALL(E5:P5,6)) -> 600
A6: 2 | B6: Elin Peterson | C6: 2002 | D6: Valfjällets SLK | E6: 80 | F6: 80 | G6: 55 | H6: 42 | I6: 80 | J6: 80 | K6: 46 | L6: 80 | M6: 80 | N6: 80 | O6: 0 | P6: 0 | S6: =SUM(E6:P6) -> 703 | T6: =(SUM(E6:P6)-SMALL(E6:P6,1)-SMALL(E6:P6,2)-SMALL(E6:P6,3)-SMALL(E6:P6,4)-SMALL(E6:P6,5)-SMALL(E6:P6,6)) -> 480
A7: 3 | B7: Ebba Tjärnestig | C7: 2002 | D7: Valfjällets SLK | E7: 70 | F7: 70 | G7: 60 | H7: 48 | I7: 70 | J7: 60 | K7: 50 | L7: 39 | M7: 55 | N7: 70 | O7: 0 | P7: 0 | S7: =SUM(E7:P7) -> 592 | T7: =(SUM(E7:P7)-SMALL(E7:P7,1)-SMALL(E7:P7,2)-SMALL(E7:P7,3)-SMALL(E7:P7,4)-SMALL(E7:P7,5)-SMALL(E7:P7,6)) -> 400
A8: 4 | B8: Klara Harnesk | C8: 2003 | D8: Karlstads SLK | E8: 0 | F8: 0 | G8: 0 | H8: 80 | I8: 34 | J8: 0 | K8: 60 | L8: 70 | M8: 70 | N8: 55 | O8: 0 | P8: 0 | S8: =SUM(E8:P8) -> 369 | T8: =(SUM(E8:P8)-SMALL(E8:P8,1)-SMALL(E8:P8,2)-SMALL(E8:P8,3)-SMALL(E8:P8,4)-SMALL(E8:P8,5)-SMALL(E8:P8,6)) -> 369
A9: 5 | B9: Ellen Westlund | C9: 2002 | D9: Ekshärads SLK | E9: 44 | F9: 0 | G9: 80 | H9: 50 | I9: 46 | J9: 70 | K9: 70 | L9: 0 | M9: 40 | N9: 38 | O9: 0 | P9: 0 | S9: =SUM(E9:P9) -> 438 | T9: =(SUM(E9:P9)-SMALL(E9:P9,1)-SMALL(E9:P9,2)-SMALL(E9:P9,3)-SMALL(E9:P9,4)-SMALL(E9:P9,5)-SMALL(E9:P9,6)) -> 360
A10: 6 | B10: Elin Hedin | C10: 2003 | D10: Karlstads SLK | E10: 40 | F10: 50 | G10: 42 | H10: 60 | I10: 0 | J10: 0 | K10: 80 | L10: 60 | M10: 39 | N10: 50 | O10: 0 | P10: 0 | S10: =SUM(E10:P10) -> 421 | T10: =(SUM(E10:P10)-SMALL(E10:P10,1)-SMALL(E10:P10,2)-SMALL(E10:P10,3)-SMALL(E10:P10,4)-SMALL(E10:P10,5)-SMALL(E10:P10,6)) -> 342
A11: 7 | B11: Wilma Strömberg | C11: 2003 | D11: Karlstads SLK | E11: 55 | F11: 55 | G11: 37 | H11: 70 | I11: 0 | J11: 0 | K11: 48 | L11: 55 | M11: 48 | N11: 40 | O11: 0 | P11: 0 | S11: =SUM(E11:P11) -> 408 | T11: =(SUM(E11:P11)-SMALL(E11:P11,1)-SMALL(E11:P11,2)-SMALL(E11:P11,3)-SMALL(E11:P11,4)-SMALL(E11:P11,5)-SMALL(E11:P11,6)) -> 331
A12: 8 | B12: Frida Hedin | C12: 2003 | D12: Karlstads SLK | E12: 60 | F12: 60 | G12: 34 | H12: 37 | I12: 0 | J12: 46 | K12: 0 | L12: 46 | M12: 60 | N12: 46 | O12: 0 | P12: 0 | S12: =SUM(E12:P12) -> 389 | T12: =(SUM(E12:P12)-SMALL(E12:P12,1)-SMALL(E12:P12,2)-SMALL(E12:P12,3)-SMALL(E12:P12,4)-SMALL(E12:P12,5)-SMALL(E12:P12,6)) -> 318
A13: 9 | B13: Alma Kindberg | C13: 2003 | D13: Kils SLK | E13: 39 | F13: 37 | G13: 70 | H13: 55 | I13: 42 | J13: 44 | K13: 42 | L13: 50 | M13: 44 | N13: 48 | O13: 0 | P13: 0 | S13: =SUM(E13:P13) -> 471 | T13: =(SUM(E13:P13)-SMALL(E13:P13,1)-SMALL(E13:P13,2)-SMALL(E13:P13,3)-SMALL(E13:P13,4)-SMALL(E13:P13,5)-SMALL(E13:P13,6)) -> 311
A14: 10 | B14: Jonna Karlsson | C14: 2002 | D14: Grums SLK | E14: 46 | F14: 48 | G14: 35 | H14: 34 | I14: 40 | J14: 55 | K14: 55 | L14: 48 | M14: 50 | N14: 44 | O14: 0 | P14: 0 | S14: =SUM(E14:P14) -> 455 | T14: =(SUM(E14:P14)-SMALL(E14:P14,1)-SMALL(E14:P14,2)-SMALL(E14:P14,3)-SMALL(E14:P14,4)-SMALL(E14:P14,5)-SMALL(E14:P14,6)) -> 302
A15: 11 | B15: Klara Stam | C15: 2002 | D15: Kils SLK | E15: 50 | F15: 42 | G15: 48 | H15: 40 | I15: 55 | J15: 50 | K15: 44 | L15: 37 | M15: 42 | N15: 40 | O15: 0 | P15: 0 | S15: =SUM(E15:P15) -> 448 | T15: =(SUM(E15:P15)-SMALL(E15:P15,1)-SMALL(E15:P15,2)-SMALL(E15:P15,3)-SMALL(E15:P15,4)-SMALL(E15:P15,5)-SMALL(E15:P15,6)) -> 289
A16: 12 | B16: Selma Lindén Karlsson | C16: 2003 | D16: Grums SLK | E16: 48 | F16: 44 | G16: 40 | H16: 35 | I16: 60 | J16: 50 | K16: 0 | L16: 42 | M16: 38 | N16: 44 | O16: 0 | P16: 0 | S16: =SUM(E16:P16) -> 401 | T16: =(SUM(E16:P16)-SMALL(E16:P16,1)-SMALL(E16:P16,2)-SMALL(E16:P16,3)-SMALL(E16:P16,4)-SMALL(E16:P16,5)-SMALL(E16:P16,6)) -> 288
A17: 13 | B17: Ida Andersson | C17: 2002 | D17: Kils SLK | E17: 36 | F17: 38 | G17: 50 | H17: 46 | I17: 44 | J17: 42 | K17: 38 | L17: 38 | M17: 46 | N17: 60 | O17: 0 | P17: 0 | S17: =SUM(E17:P17) -> 438 | T17: =(SUM(E17:P17)-SMALL(E17:P17,1)-SMALL(E17:P17,2)-SMALL(E17:P17,3)-SMALL(E17:P17,4)-SMALL(E17:P17,5)-SMALL(E17:P17,6)) -> 288
A18: 14 | B18: Nathalie Granbom | C18: 2003 | D18: Karlstads SLK | E18: 0 | F18: 0 | G18: 38 | H18: 39 | I18: 48 | J18: 38 | K18: 40 | L18: 44 | M18: 36 | N18: 37 | O18: 0 | P18: 0 | S18: =SUM(E18:P18) -> 320 | T18: =(SUM(E18:P18)-SMALL(E18:P18,1)-SMALL(E18:P18,2)-SMALL(E18:P18,3)-SMALL(E18:P18,4)-SMALL(E18:P18,5)-SMALL(E18:P18,6)) -> 247
A19: 15 | B19: Cornelia Sandström | C19: 2003 | D19: Kils SLK | E19: 42 | F19: 46 | G19: 44 | H19: 38 | I19: 39 | J19: 37 | K19: 32 | L19: 34 | M19: 31 | N19: 31 | O19: 0 | P19: 0 | S19: =SUM(E19:P19) -> 374 | T19: =(SUM(E19:P19)-SMALL(E19:P19,1)-SMALL(E19:P19,2)-SMALL(E19:P19,3)-SMALL(E19:P19,4)-SMALL(E19:P19,5)-SMALL(E19:P19,6)) -> 246
A20: 16 | B20: Matilda Herrlin | C20: 2002 | D20: Kils SLK | E20: 37 | F20: 39 | G20: 46 | H20: 44 | I20: 38 | J20: 40 | K20: 33 | L20: 32 | M20: 0 | N20: 0 | O20: 0 | P20: 0 | S20: =SUM(E20:P20) -> 309 | T20: =(SUM(E20:P20)-SMALL(E20:P20,1)-SMALL(E20:P20,2)-SMALL(E20:P20,3)-SMALL(E20:P20,4)-SMALL(E20:P20,5)-SMALL(E20:P20,6)) -> 244
A21: 17 | B21: Linn Westin | C21: 2003 | D21: Kils SLK | E21: 35 | F21: 32 | G21: 36 | H21: 0 | I21: 50 | J21: 0 | K21: 39 | L21: 42 | M21: 37 | N21: 36 | O21: 0 | P21: 0 | S21: =SUM(E21:P21) -> 307 | T21: =(SUM(E21:P21)-SMALL(E21:P21,1)-SMALL(E21:P21,2)-SMALL(E21:P21,3)-SMALL(E21:P21,4)-SMALL(E21:P21,5)-SMALL(E21:P21,6)) -> 240
A22: 18 | B22: Tilda Hämquist | C22: 2002 | D22: Kils SLK | E22: 38 | F22: 40 | G22: 32 | H22: 33 | I22: 37 | J22: 0 | K22: 37 | L22: 36 | M22: 35 | N22: 35 | O22: 0 | P22: 0 | S22: =SUM(E22:P22) -> 323 | T22: =(SUM(E22:P22)-SMALL(E22:P22,1)-SMALL(E22:P22,2)-SMALL(E22:P22,3)-SMALL(E22:P22,4)-SMALL(E22:P22,5)-SMALL(E22:P22,6)) -> 223
A23: 19 | B23: Moa Dalslåen | C23: 2002 | D23: Sunne AK | E23: 33 | F23: 35 | G23: 39 | H23: 36 | I23: 32 | J23: 36 | K23: 0 | L23: 0 | M23: 34 | N23: 34 | O23: 0 | P23: 0 | S23: =SUM(E23:P23) -> 279 | T23: =(SUM(E23:P23)-SMALL(E23:P23,1)-SMALL(E23:P23,2)-SMALL(E23:P23,3)-SMALL(E23:P23,4)-SMALL(E23:P23,5)-SMALL(E23:P23,6)) -> 214
A24: 20 | B24: Sanna Brånander | C24: 2003 | D24: Karlstads SLK | E24: 30 | F24: 33 | G24: 33 | H24: 0 | I24: 35 | J24: 39 | K24: 34 | L24: 36 | M24: 0 | N24: 0 | O24: 0 | P24: 0 | S24: =SUM(E24:P24) -> 240 | T24: =(SUM(E24:P24)-SMALL(E24:P24,1)-SMALL(E24:P24,2)-SMALL(E24:P24,3)-SMALL(E24:P24,4)-SMALL(E24:P24,5)-SMALL(E24:P24,6)) -> 210
A25: 21 | B25: Antonia Cerwall | C25: 2003 | D25: Karlskoga SLK | E25: 31 | F25: 34 | G25: 24 | H25: 25 | I25: 0 | J25: 0 | K25: 35 | L25: 33 | M25: 30 | N25: 30 | O25: 0 | P25: 0 | S25: =SUM(E25:P25) -> 242 | T25: =(SUM(E25:P25)-SMALL(E25:P25,1)-SMALL(E25:P25,2)-SMALL(E25:P25,3)-SMALL(E25:P25,4)-SMALL(E25:P25,5)-SMALL(E25:P25,6)) -> 193
A26: 22 | B26: Linda Eriksson | C26: 2003 | D26: Grums SLK | E26: 29 | F26: 30 | G26: 30 | H26: 31 | I26: 33 | J26: 35 | K26: 31 | L26: 31 | M26: 29 | N26: 29 | O26: 0 | P26: 0 | S26: =SUM(E26:P26) -> 308 | T26: =(SUM(E26:P26)-SMALL(E26:P26,1)-SMALL(E26:P26,2)-SMALL(E26:P26,3)-SMALL(E26:P26,4)-SMALL(E26:P26,5)-SMALL(E26:P26,6)) -> 191
A27: 23 | B27: Maja Bergström | C27: 2003 | D27: Valfjällets SLK | E27: 0 | F27: 0 | G27: 29 | H27: 30 | I27: 31 | J27: 34 | K27: 0 | L27: 0 | M27: 28 | N27: 28 | O27: 0 | P27: 0 | S27: =SUM(E27:P27) -> 180 | T27: =(SUM(E27:P27)-SMALL(E27:P27,1)-SMALL(E27:P27,2)-SMALL(E27:P27,3)-SMALL(E27:P27,4)-SMALL(E27:P27,5)-SMALL(E27:P27,6)) -> 180
A28: 24 | B28: Alma Bäckman | C28: 2002 | D28: Valfjällets SLK | E28: 34 | F28: 36 | G28: 31 | H28: 32 | I28: 36 | J28: 0 | K28: 0 | L28: 0 | M28: 0 | N28: 0 | O28: 0 | P28: 0 | S28: =SUM(E28:P28) -> 169 | T28: =(SUM(E28:P28)-SMALL(E28:P28,1)-SMALL(E28:P28,2)-SMALL(E28:P28,3)-SMALL(E28:P28,4)-SMALL(E28:P28,5)-SMALL(E28:P28,6)) -> 169
A29: 25 | B29: Victoria Spennare Olsson | C29: 2002 | D29: Valfjällets SLK | E29: 0 | F29: 0 | G29: 25 | H29: 26 | I29: 0 | J29: 33 | K29: 0 | L29: 0 | M29: 32 | N29: 32 | O29: 0 | P29: 0 | S29: =SUM(E29:P29) -> 148 | T29: =(SUM(E29:P29)-SMALL(E29:P29,1)-SMALL(E29:P29,2)-SMALL(E29:P29,3)-SMALL(E29:P29,4)-SMALL(E29:P29,5)-SMALL(E29:P29,6)) -> 148
A30: 26 | B30: Isabelle Gustafsson | C30: 2003 | D30: Kils SLK | E30: 32 | F30: 31 | G30: 0 | H30: 0 | I30: 0 | J30: 0 | K30: 36 | L30: 0 | M30: 0 | N30: 0 | O30: 0 | P30: 0 | S30: =SUM(E30:P30) -> 99 | T30: =(SUM(E30:P30)-SMALL(E30:P30,1)-SMALL(E30:P30,2)-SMALL(E30:P30,3)-SMALL(E30:P30,4)-SMALL(E30:P30,5)-SMALL(E30:P30,6)) -> 99
A31: 27 | B31: Alva Holmquist | C31: 2002 | D31: Valfjällets SLK | E31: 0 | F31: 0 | G31: 0 | H31: 0 | I31: 0 | J31: 0 | K31: 0 | L31: 0 | M31: 33 | N31: 33 | O31: 0 | P31: 0 | S31: =SUM(E31:P31) -> 66 | T31: =(SUM(E31:P31)-SMALL(E31:P31,1)-SMALL(E31:P31,2)-SMALL(E31:P31,3)-SMALL(E31:P31,4)-SMALL(E31:P31,5)-SMALL(E31:P31,6)) -> 66
A32: 28 | B32: Thea Sandberg | C32: 2002 | D32: Kils SLK | E32: 0 | F32: 0 | G32: 28 | H32: 29 | I32: 0 | J32: 0 | K32: 0 | L32: 0 | M32: 0 | N32: 0 | O32: 0 | P32: 0 | S32: =SUM(E32:P32) -> 57 | T32: =(SUM(E32:P32)-SMALL(E32:P32,1)-SMALL(E32:P32,2)-SMALL(E32:P32,3)-SMALL(E32:P32,4)-SMALL(E32:P32,5)-SMALL(E32:P32,6)) -> 57
A33: 29 | B33: Elsa Samuelsson | C33: 2003 | D33: Kils SLK | E33: 0 | F33: 0 | G33: 26 | H33: 28 | I33: 0 | J33: 0 | K33: 0 | L33: 0 | M33: 0 | N33: 0 | O33: 0 | P33: 0 | S33: =SUM(E33:P33) -> 54 | T33: =(SUM(E33:P33)-SMALL(E33:P33,1)-SMALL(E33:P33,2)-SMALL(E33:P33,3)-SMALL(E33:P33,4)-SMALL(E33:P33,5)-SMALL(E33:P33,6)) -> 54
A34: 30 | B34: Ella Forkén | C34: 2003 | D34: Grums SLK | E34: 0 | F34: 0 | G34: 27 | H34: 27 | I34: 0 | J34: 0 | K34: 0 | L34: 0 | M34: 0 | N34: 0 | O34: 0 | P34: 0 | S34: =SUM(E34:P34) -> 54 | T34: =(SUM(E34:P34)-SMALL(E34:P34,1)-SMALL(E34:P34,2)-SMALL(E34:P34,3)-SMALL(E34:P34,4)-SMALL(E34:P34,5)-SMALL(E34:P34,6)) -> 54
A35: 31 | E35: 0 | F35: 0 | G35: 0 | H35: 0 | I35: 0 | J35: 0 | K35: 0 | L35: 0 | M35: 0 | N35: 0 | O35: 0 | P35: 0 | S35: =SUM(E35:P35) -> 0 | T35: =(SUM(E35:P35)-SMALL(E35:P35,1)-SMALL(E35:P35,2)-SMALL(E35:P35,3)-SMALL(E35:P35,4)-SMALL(E35:P35,5)-SMALL(E35:P35,6)) -> 0
A36: 32 | E36: 0 | F36: 0 | G36: 0 | H36: 0 | I36: 0 | J36: 0 | K36: 0 | L36: 0 | M36: 0 | N36: 0 | O36: 0 | P36: 0 | S36: =SUM(E36:P36) -> 0 | T36: =(SUM(E36:P36)-SMALL(E36:P36,1)-SMALL(E36:P36,2)-SMALL(E36:P36,3)-SMALL(E36:P36,4)-SMALL(E36:P36,5)-SMALL(E36:P36,6)) -> 0
A37: 33 | E37: 0 | F37: 0 | G37: 0 | H37: 0 | I37: 0 | J37: 0 | K37: 0 | L37: 0 | M37: 0 | N37: 0 | O37: 0 | P37: 0 | S37: =SUM(E37:P37) -> 0 | T37: =(SUM(E37:P37)-SMALL(E37:P37,1)-SMALL(E37:P37,2)-SMALL(E37:P37,3)-SMALL(E37:P37,4)-SMALL(E37:P37,5)-SMALL(E37:P37,6)) -> 0
A38: 34 | E38: 0 | F38: 0 | G38: 0 | H38: 0 | I38: 0 | J38: 0 | K38: 0 | L38: 0 | M38: 0 | N38: 0 | O38: 0 | P38: 0 | S38: =SUM(E38:P38) -> 0 | T38: =(SUM(E38:P38)-SMALL(E38:P38,1)-SMALL(E38:P38,2)-SMALL(E38:P38,3)-SMALL(E38:P38,4)-SMALL(E38:P38,5)-SMALL(E38:P38,6)) -> 0
A39: 35 | E39: 0 | F39: 0 | G39: 0 | H39: 0 | I39: 0 | J39: 0 | K39: 0 | L39: 0 | M39: 0 | N39: 0 | O39: 0 | P39: 0 | S39: =SUM(E39:P39) -> 0 | T39: =(SUM(E39:P39)-SMALL(E39:P39,1)-SMALL(E39:P39,2)-SMALL(E39:P39,3)-SMALL(E39:P39,4)-SMALL(E39:P39,5)-SMALL(E39:P39,6)) -> 0
A40: 36 | E40: 0 | F40: 0 | G40: 0 | H40: 0 | I40: 0 | J40: 0 | K40: 0 | L40: 0 | M40: 0 | N40: 0 | O40: 0 | P40: 0 | S40: =SUM(E40:P40) -> 0 | T40: =(SUM(E40:P40)-SMALL(E40:P40,1)-SMALL(E40:P40,2)-SMALL(E40:P40,3)-SMALL(E40:P40,4)-SMALL(E40:P40,5)-SMALL(E40:P40,6)) -> 0
A41: 37 | E41: 0 | F41: 0 | G41: 0 | H41: 0 | I41: 0 | J41: 0 | K41: 0 | L41: 0 | M41: 0 | N41: 0 | O41: 0 | P41: 0 | S41: =SUM(E41:P41) -> 0 | T41: =(SUM(E41:P41)-SMALL(E41:P41,1)-SMALL(E41:P41,2)-SMALL(E41:P41,3)-SMALL(E41:P41,4)-SMALL(E41:P41,5)-SMALL(E41:P41,6)) -> 0
A42: 38 | E42: 0 | F42: 0 | G42: 0 | H42: 0 | I42: 0 | J42: 0 | K42: 0 | L42: 0 | M42: 0 | N42: 0 | O42: 0 | P42: 0 | S42: =SUM(E42:P42) -> 0 | T42: =(SUM(E42:P42)-SMALL(E42:P42,1)-SMALL(E42:P42,2)-SMALL(E42:P42,3)-SMALL(E42:P42,4)-SMALL(E42:P42,5)-SMALL(E42:P42,6)) -> 0
A43: 39 | E43: 0 | F43: 0 | G43: 0 | H43: 0 | I43: 0 | J43: 0 | K43: 0 | L43: 0 | M43: 0 | N43: 0 | O43: 0 | P43: 0 | S43: =SUM(E43:P43) -> 0 | T43: =(SUM(E43:P43)-SMALL(E43:P43,1)-SMALL(E43:P43,2)-SMALL(E43:P43,3)-SMALL(E43:P43,4)-SMALL(E43:P43,5)-SMALL(E43:P43,6)) -> 0
A44: 40 | E44: 0 | F44: 0 | G44: 0 | H44: 0 | I44: 0 | J44: 0 | K44: 0 | L44: 0 | M44: 0 | N44: 0 | O44: 0 | P44: 0 | S44: =SUM(E44:P44) -> 0 | T44: =(SUM(E44:P44)-SMALL(E44:P44,1)-SMALL(E44:P44,2)-SMALL(E44:P44,3)-SMALL(E44:P44,4)-SMALL(E44:P44,5)-SMALL(E44:P44,6)) -> 0
A45: 41 | E45: 0 | F45: 0 | G45: 0 | H45: 0 | I45: 0 | J45: 0 | K45: 0 | L45: 0 | M45: 0 | N45: 0 | O45: 0 | P45: 0 | S45: =SUM(E45:P45) -> 0 | T45: =(SUM(E45:P45)-SMALL(E45:P45,1)-SMALL(E45:P45,2)-SMALL(E45:P45,3)-SMALL(E45:P45,4)-SMALL(E45:P45,5)-SMALL(E45:P45,6)) -> 0
A46: 42 | E46: 0 | F46: 0 | G46: 0 | H46: 0 | I46: 0 | J46: 0 | K46: 0 | L46: 0 | M46: 0 | N46: 0 | O46: 0 | P46: 0 | S46: =SUM(E46:P46) -> 0 | T46: =(SUM(E46:P46)-SMALL(E46:P46,1)-SMALL(E46:P46,2)-SMALL(E46:P46,3)-SMALL(E46:P46,4)-SMALL(E46:P46,5)-SMALL(E46:P46,6)) -> 0
A47: 43 | E47: 0 | F47: 0 | G47: 0 | H47: 0 | I47: 0 | J47: 0 | K47: 0 | L47: 0 | M47: 0 | N47: 0 | O47: 0 | P47: 0 | S47: =SUM(E47:P47) -> 0 | T47: =(SUM(E47:P47)-SMALL(E47:P47,1)-SMALL(E47:P47,2)-SMALL(E47:P47,3)-SMALL(E47:P47,4)-SMALL(E47:P47,5)-SMALL(E47:P47,6)) -> 0
A48: 44 | E48: 0 | F48: 0 | G48: 0 | H48: 0 | I48: 0 | J48: 0 | K48: 0 | L48: 0 | M48: 0 | N48: 0 | O48: 0 | P48: 0 | S48: =SUM(E48:P48) -> 0 | T48: =(SUM(E48:P48)-SMALL(E48:P48,1)-SMALL(E48:P48,2)-SMALL(E48:P48,3)-SMALL(E48:P48,4)-SMALL(E48:P48,5)-SMALL(E48:P48,6)) -> 0
A49: 45 | E49: 0 | F49: 0 | G49: 0 | H49: 0 | I49: 0 | J49: 0 | K49: 0 | L49: 0 | M49: 0 | N49: 0 | O49: 0 | P49: 0 | S49: =SUM(E49:P49) -> 0 | T49: =(SUM(E49:P49)-SMALL(E49:P49,1)-SMALL(E49:P49,2)-SMALL(E49:P49,3)-SMALL(E49:P49,4)-SMALL(E49:P49,5)-SMALL(E49:P49,6)) -> 0
A50: 46 | E50: 0 | F50: 0 | G50: 0 | H50: 0 | I50: 0 | J50: 0 | K50: 0 | L50: 0 | M50: 0 | N50: 0 | O50: 0 | P50: 0 | S50: =SUM(E50:P50) -> 0 | T50: =(SUM(E50:P50)-SMALL(E50:P50,1)-SMALL(E50:P50,2)-SMALL(E50:P50,3)-SMALL(E50:P50,4)-SMALL(E50:P50,5)-SMALL(E50:P50,6)) -> 0
A51: 47 | E51: 0 | F51: 0 | G51: 0 | H51: 0 | I51: 0 | J51: 0 | K51: 0 | L51: 0 | M51: 0 | N51: 0 | O51: 0 | P51: 0 | S51: =SUM(E51:P51) -> 0 | T51: =(SUM(E51:P51)-SMALL(E51:P51,1)-SMALL(E51:P51,2)-SMALL(E51:P51,3)-SMALL(E51:P51,4)-SMALL(E51:P51,5)-SMALL(E51:P51,6)) -> 0
A52: 48 | E52: 0 | F52: 0 | G52: 0 | H52: 0 | I52: 0 | J52: 0 | K52: 0 | L52: 0 | M52: 0 | N52: 0 | O52: 0 | P52: 0 | S52: =SUM(E52:P52) -> 0 | T52: =(SUM(E52:P52)-SMALL(E52:P52,1)-SMALL(E52:P52,2)-SMALL(E52:P52,3)-SMALL(E52:P52,4)-SMALL(E52:P52,5)-SMALL(E52:P52,6)) -> 0
A53: 49 | E53: 0 | F53: 0 | G53: 0 | H53: 0 | I53: 0 | J53: 0 | K53: 0 | L53: 0 | M53: 0 | N53: 0 | O53: 0 | P53: 0 | S53: =SUM(E53:P53) -> 0 | T53: =(SUM(E53:P53)-SMALL(E53:P53,1)-SMALL(E53:P53,2)-SMALL(E53:P53,3)-SMALL(E53:P53,4)-SMALL(E53:P53,5)-SMALL(E53:P53,6)) -> 0
A54: 50 | E54: 0 | F54: 0 | G54: 0 | H54: 0 | I54: 0 | J54: 0 | K54: 0 | L54: 0 | M54: 0 | N54: 0 | O54: 0 | P54: 0 | S54: =SUM(E54:P54) -> 0 | T54: =(SUM(E54:P54)-SMALL(E54:P54,1)-SMALL(E54:P54,2)-SMALL(E54:P54,3)-SMALL(E54:P54,4)-SMALL(E54:P54,5)-SMALL(E54:P54,6)) -> 0
A55: 51 | E55: 0 | F55: 0 | G55: 0 | H55: 0 | I55: 0 | J55: 0 | K55: 0 | L55: 0 | M55: 0 | N55: 0 | O55: 0 | P55: 0 | S55: =SUM(E55:P55) -> 0 | T55: =(SUM(E55:P55)-SMALL(E55:P55,1)-SMALL(E55:P55,2)-SMALL(E55:P55,3)-SMALL(E55:P55,4)-SMALL(E55:P55,5)-SMALL(E55:P55,6)) -> 0
A56: 52 | E56: 0 | F56: 0 | G56: 0 | H56: 0 | I56: 0 | J56: 0 | K56: 0 | L56: 0 | M56: 0 | N56: 0 | O56: 0 | P56: 0 | S56: =SUM(E56:P56) -> 0 | T56: =(SUM(E56:P56)-SMALL(E56:P56,1)-SMALL(E56:P56,2)-SMALL(E56:P56,3)-SMALL(E56:P56,4)-SMALL(E56:P56,5)-SMALL(E56:P56,6)) -> 0
A57: 53 | E57: 0 | F57: 0 | G57: 0 | H57: 0 | I57: 0 | J57: 0 | K57: 0 | L57: 0 | M57: 0 | N57: 0 | O57: 0 | P57: 0 | S57: =SUM(E57:P57) -> 0 | T57: =(SUM(E57:P57)-SMALL(E57:P57,1)-SMALL(E57:P57,2)-SMALL(E57:P57,3)-SMALL(E57:P57,4)-SMALL(E57:P57,5)-SMALL(E57:P57,6)) -> 0
A58: 54 | E58: 0 | F58: 0 | G58: 0 | H58: 0 | I58: 0 | J58: 0 | K58: 0 | L58: 0 | M58: 0 | N58: 0 | O58: 0 | P58: 0 | S58: =SUM(E58:P58) -> 0 | T58: =(SUM(E58:P58)-SMALL(E58:P58,1)-SMALL(E58:P58,2)-SMALL(E58:P58,3)-SMALL(E58:P58,4)-SMALL(E58:P58,5)-SMALL(E58:P58,6)) -> 0
A59: 55 | E59: 0 | F59: 0 | G59: 0 | H59: 0 | I59: 0 | J59: 0 | K59: 0 | L59: 0 | M59: 0 | N59: 0 | O59: 0 | P59: 0 | S59: =SUM(E59:P59) -> 0 | T59: =(SUM(E59:P59)-SMALL(E59:P59,1)-SMALL(E59:P59,2)-SMALL(E59:P59,3)-SMALL(E59:P59,4)-SMALL(E59:P59,5)-SMALL(E59:P59,6)) -> 0
A60: 56 | E60: 0 | F60: 0 | G60: 0 | H60: 0 | I60: 0 | J60: 0 | K60: 0 | L60: 0 | M60: 0 | N60: 0 | O60: 0 | P60: 0 | S60: =SUM(E60:P60) -> 0 | T60: =(SUM(E60:P60)-SMALL(E60:P60,1)-SMALL(E60:P60,2)-SMALL(E60:P60,3)-SMALL(E60:P60,4)-SMALL(E60:P60,5)-SMALL(E60:P60,6)) -> 0
A61: 57 | E61: 0 | F61: 0 | G61: 0 | H61: 0 | I61: 0 | J61: 0 | K61: 0 | L61: 0 | M61: 0 | N61: 0 | O61: 0 | P61: 0 | S61: =SUM(E61:P61) -> 0 | T61: =(SUM(E61:P61)-SMALL(E61:P61,1)-SMALL(E61:P61,2)-SMALL(E61:P61,3)-SMALL(E61:P61,4)-SMALL(E61:P61,5)-SMALL(E61:P61,6)) -> 0
A62: 58 | E62: 0 | F62: 0 | G62: 0 | H62: 0 | I62: 0 | J62: 0 | K62: 0 | L62: 0 | M62: 0 | N62: 0 | O62: 0 | P62: 0 | S62: =SUM(E62:P62) -> 0 | T62: =(SUM(E62:P62)-SMALL(E62:P62,1)-SMALL(E62:P62,2)-SMALL(E62:P62,3)-SMALL(E62:P62,4)-SMALL(E62:P62,5)-SMALL(E62:P62,6)) -> 0
A63: 59 | E63: 0 | F63: 0 | G63: 0 | H63: 0 | I63: 0 | J63: 0 | K63: 0 | L63: 0 | M63: 0 | N63: 0 | O63: 0 | P63: 0 | S63: =SUM(E63:P63) -> 0 | T63: =(SUM(E63:P63)-SMALL(E63:P63,1)-SMALL(E63:P63,2)-SMALL(E63:P63,3)-SMALL(E63:P63,4)-SMALL(E63:P63,5)-SMALL(E63:P63,6)) -> 0
A64: 60 | E64: 0 | F64: 0 | G64: 0 | H64: 0 | I64: 0 | J64: 0 | K64: 0 | L64: 0 | M64: 0 | N64: 0 | O64: 0 | P64: 0 | S64: =SUM(E64:P64) -> 0 | T64: =(SUM(E64:P64)-SMALL(E64:P64,1)-SMALL(E64:P64,2)-SMALL(E64:P64,3)-SMALL(E64:P64,4)-SMALL(E64:P64,5)-SMALL(E64:P64,6)) -> 0

Sheet P U14
A1: LVC-sammanställning Värmland 2016 | R1: Ändra ej i grå fält
E2: Branäs | G2: Kil | I2: Sunne | K2: Sunne | M2: Valfjället | O2: Grums | Q2: Grums
A3: Klass: | B3: Pojkar U14 | E3: GS1 | F3: GS2 | G3: SL1 | H3: SL2 | I3: GS3 | J3: GS4 | K3: SG1 | L3: SG2 | M3: SG3 | N3: SG4 | O3: SL3 | P3: SL4 | Q3: SL5 | R3: SL6
A4: Plac | B4: Namn | C4: År | D4: Klubb | E4: 1 | F4: 2 | G4: 3 | H4: 4 | I4: 5 | J4: 6 | K4: 7 | L4: 8 | M4: 9 | N4: 10 | O4: 11 | P4: 12 | Q4: 13 | R4: 14 | S4: Tot: | T4: 6 Bästa
A5: 1 | B5: Adam Hofstedt | C5: 2002 | D5: Karlstads SLK | E5: 100 | F5: 44 | G5: 80 | H5: 80 | I5: 44 | J5: 100 | K5: 100 | L5: 70 | M5: 80 | N5: 100 | O5: 0 | P5: 0 | S5: =SUM(E5:P5) -> 798 | T5: =(SUM(E5:P5)-SMALL(E5:P5,1)-SMALL(E5:P5,2)-SMALL(E5:P5,3)-SMALL(E5:P5,4)-SMALL(E5:P5,5)-SMALL(E5:P5,6)) -> 560
A6: 2 | B6: Joel Molin | C6: 2002 | D6: Valfjällets SLK | E6: 70 | F6: 100 | G6: 70 | H6: 70 | I6: 80 | J6: 70 | K6: 100 | L6: 100 | M6: 100 | N6: 70 | O6: 0 | P6: 0 | S6: =SUM(E6:P6) -> 830 | T6: =(SUM(E6:P6)-SMALL(E6:P6,1)-SMALL(E6:P6,2)-SMALL(E6:P6,3)-SMALL(E6:P6,4)-SMALL(E6:P6,5)-SMALL(E6:P6,6)) -> 550
A7: 3 | B7: Linus Lander | C7: 2002 | D7: Sunne AK | E7: 80 | F7: 80 | G7: 100 | H7: 100 | I7: 100 | J7: 80 | K7: 70 | L7: 80 | M7: 70 | N7: 80 | O7: 0 | P7: 0 | S7: =SUM(E7:P7) -> 840 | T7: =(SUM(E7:P7)-SMALL(E7:P7,1)-SMALL(E7:P7,2)-SMALL(E7:P7,3)-SMALL(E7:P7,4)-SMALL(E7:P7,5)-SMALL(E7:P7,6)) -> 540
A8: 4 | B8: Seth Gustafsson | C8: 2002 | D8: Karlstads SLK | E8: 60 | F8: 70 | G8: 60 | H8: 55 | I8: 70 | J8: 0 | K8: 46 | L8: 44 | M8: 50 | N8: 60 | O8: 0 | P8: 0 | S8: =SUM(E8:P8) -> 515 | T8: =(SUM(E8:P8)-SMALL(E8:P8,1)-SMALL(E8:P8,2)-SMALL(E8:P8,3)-SMALL(E8:P8,4)-SMALL(E8:P8,5)-SMALL(E8:P8,6)) -> 375
A9: 5 | B9: Thed Molin | C9: 2003 | D9: Valfjällets SLK | E9: 46 | F9: 48 | G9: 44 | H9: 46 | I9: 55 | J9: 60 | K9: 60 | L9: 60 | M9: 46 | N9: 48 | O9: 0 | P9: 0 | S9: =SUM(E9:P9) -> 513 | T9: =(SUM(E9:P9)-SMALL(E9:P9,1)-SMALL(E9:P9,2)-SMALL(E9:P9,3)-SMALL(E9:P9,4)-SMALL(E9:P9,5)-SMALL(E9:P9,6)) -> 331
A10: 6 | B10: Oliver Holth Lystad | C10: 2003 | D10: Valfjällets SLK | E10: 55 | F10: 55 | G10: 50 | H10: 50 | I10: 0 | J10: 44 | K10: 55 | L10: 48 | M10: 60 | N10: 55 | O10: 0 | P10: 0 | S10: =SUM(E10:P10) -> 472 | T10: =(SUM(E10:P10)-SMALL(E10:P10,1)-SMALL(E10:P10,2)-SMALL(E10:P10,3)-SMALL(E10:P10,4)-SMALL(E10:P10,5)-SMALL(E10:P10,6)) -> 330
A11: 7 | B11: Ross Olsson | C11: 2002 | D11: Sunne AK | E11: 48 | F11: 50 | G11: 55 | H11: 60 | I11: 48 | J11: 48 | K11: 44 | L11: 46 | M11: 55 | N11: 50 | O11: 0 | P11: 0 | S11: =SUM(E11:P11) -> 504 | T11: =(SUM(E11:P11)-SMALL(E11:P11,1)-SMALL(E11:P11,2)-SMALL(E11:P11,3)-SMALL(E11:P11,4)-SMALL(E11:P11,5)-SMALL(E11:P11,6)) -> 318
A12: 8 | B12: Oscar Jonasson | C12: 2003 | D12: Branäs AK | E12: 50 | F12: 60 | G12: 0 | H12: 48 | I12: 0 | J12: 55 | K12: 48 | L12: 50 | M12: 0 | N12: 0 | O12: 0 | P12: 0 | S12: =SUM(E12:P12) -> 311 | T12: =(SUM(E12:P12)-SMALL(E12:P12,1)-SMALL(E12:P12,2)-SMALL(E12:P12,3)-SMALL(E12:P12,4)-SMALL(E12:P12,5)-SMALL(E12:P12,6)) -> 311
A13: 9 | B13: Alfred Granström | C13: 2003 | D13: Valfjällets SLK | E13: 44 | F13: 46 | G13: 40 | H13: 42 | I13: 60 | J13: 50 | K13: 50 | L13: 55 | M13: 48 | N13: 46 | O13: 0 | P13: 0 | S13: =SUM(E13:P13) -> 481 | T13: =(SUM(E13:P13)-SMALL(E13:P13,1)-SMALL(E13:P13,2)-SMALL(E13:P13,3)-SMALL(E13:P13,4)-SMALL(E13:P13,5)-SMALL(E13:P13,6)) -> 309
A14: 10 | B14: Noah Rundh | C14: 2003 | D14: Arvika SLK | E14: 0 | F14: 0 | G14: 0 | H14: 0 | I14: 50 | J14: 46 | K14: 42 | L14: 42 | M14: 44 | N14: 44 | O14: 0 | P14: 0 | S14: =SUM(E14:P14) -> 268 | T14: =(SUM(E14:P14)-SMALL(E14:P14,1)-SMALL(E14:P14,2)-SMALL(E14:P14,3)-SMALL(E14:P14,4)-SMALL(E14:P14,5)-SMALL(E14:P14,6)) -> 268
A15: 11 | B15: Kristian Vetle Olsen | C15: 2003 | D15: Valfjällets SLK | E15: 0 | F15: 42 | G15: 46 | H15: 44 | I15: 46 | J15: 40 | K15: 40 | L15: 40 | M15: 42 | N15: 42 | O15: 0 | P15: 0 | S15: =SUM(E15:P15) -> 382 | T15: =(SUM(E15:P15)-SMALL(E15:P15,1)-SMALL(E15:P15,2)-SMALL(E15:P15,3)-SMALL(E15:P15,4)-SMALL(E15:P15,5)-SMALL(E15:P15,6)) -> 262
A16: 12 | B16: Jörgen Amundsen | C16: 2003 | D16: Valfjällets SLK | E16: 42 | F16: 40 | G16: 0 | H16: 0 | I16: 42 | J16: 39 | K16: 0 | L16: 0 | M16: 0 | N16: 0 | O16: 0 | P16: 0 | S16: =SUM(E16:P16) -> 163 | T16: =(SUM(E16:P16)-SMALL(E16:P16,1)-SMALL(E16:P16,2)-SMALL(E16:P16,3)-SMALL(E16:P16,4)-SMALL(E16:P16,5)-SMALL(E16:P16,6)) -> 163
A17: 13 | B17: Gustav Pettersson | C17: 2002 | D17: Kil SLK | E17: 0 | F17: 0 | G17: 48 | H17: 42 | I17: 0 | J17: 0 | K17: 39 | L17: 0 | M17: 0 | N17: 0 | O17: 0 | P17: 0 | S17: =SUM(E17:P17) -> 129 | T17: =(SUM(E17:P17)-SMALL(E17:P17,1)-SMALL(E17:P17,2)-SMALL(E17:P17,3)-SMALL(E17:P17,4)-SMALL(E17:P17,5)-SMALL(E17:P17,6)) -> 129
A18: 14 | B18: Hugo Svending | C18: 2003 | D18: Kil SLK | E18: 0 | F18: 0 | G18: 42 | H18: 39 | I18: 0 | J18: 42 | K18: 0 | L18: 0 | M18: 0 | N18: 0 | O18: 0 | P18: 0 | S18: =SUM(E18:P18) -> 123 | T18: =(SUM(E18:P18)-SMALL(E18:P18,1)-SMALL(E18:P18,2)-SMALL(E18:P18,3)-SMALL(E18:P18,4)-SMALL(E18:P18,5)-SMALL(E18:P18,6)) -> 123
A19: 15 | E19: 0 | F19: 0 | G19: 0 | H19: 0 | I19: 0 | J19: 0 | K19: 0 | L19: 0 | M19: 0 | N19: 0 | O19: 0 | P19: 0 | S19: =SUM(E19:P19) -> 0 | T19: =(SUM(E19:P19)-SMALL(E19:P19,1)-SMALL(E19:P19,2)-SMALL(E19:P19,3)-SMALL(E19:P19,4)-SMALL(E19:P19,5)-SMALL(E19:P19,6)) -> 0
A20: 16 | E20: 0 | F20: 0 | G20: 0 | H20: 0 | I20: 0 | J20: 0 | K20: 0 | L20: 0 | M20: 0 | N20: 0 | O20: 0 | P20: 0 | S20: =SUM(E20:P20) -> 0 | T20: =(SUM(E20:P20)-SMALL(E20:P20,1)-SMALL(E20:P20,2)-SMALL(E20:P20,3)-SMALL(E20:P20,4)-SMALL(E20:P20,5)-SMALL(E20:P20,6)) -> 0
A21: 17 | E21: 0 | F21: 0 | G21: 0 | H21: 0 | I21: 0 | J21: 0 | K21: 0 | L21: 0 | M21: 0 | N21: 0 | O21: 0 | P21: 0 | S21: =SUM(E21:P21) -> 0 | T21: =(SUM(E21:P21)-SMALL(E21:P21,1)-SMALL(E21:P21,2)-SMALL(E21:P21,3)-SMALL(E21:P21,4)-SMALL(E21:P21,5)-SMALL(E21:P21,6)) -> 0
A22: 18 | E22: 0 | F22: 0 | G22: 0 | H22: 0 | I22: 0 | J22: 0 | K22: 0 | L22: 0 | M22: 0 | N22: 0 | O22: 0 | P22: 0 | S22: =SUM(E22:P22) -> 0 | T22: =(SUM(E22:P22)-SMALL(E22:P22,1)-SMALL(E22:P22,2)-SMALL(E22:P22,3)-SMALL(E22:P22,4)-SMALL(E22:P22,5)-SMALL(E22:P22,6)) -> 0
A23: 19 | E23: 0 | F23: 0 | G23: 0 | H23: 0 | I23: 0 | J23: 0 | K23: 0 | L23: 0 | M23: 0 | N23: 0 | O23: 0 | P23: 0 | S23: =SUM(E23:P23) -> 0 | T23: =(SUM(E23:P23)-SMALL(E23:P23,1)-SMALL(E23:P23,2)-SMALL(E23:P23,3)-SMALL(E23:P23,4)-SMALL(E23:P23,5)-SMALL(E23:P23,6)) -> 0
A24: 20 | E24: 0 | F24: 0 | G24: 0 | H24: 0 | I24: 0 | J24: 0 | K24: 0 | L24: 0 | M24: 0 | N24: 0 | O24: 0 | P24: 0 | S24: =SUM(E24:P24) -> 0 | T24: =(SUM(E24:P24)-SMALL(E24:P24,1)-SMALL(E24:P24,2)-SMALL(E24:P24,3)-SMALL(E24:P24,4)-SMALL(E24:P24,5)-SMALL(E24:P24,6)) -> 0
A25: 21 | E25: 0 | F25: 0 | G25: 0 | H25: 0 | I25: 0 | J25: 0 | K25: 0 | L25: 0 | M25: 0 | N25: 0 | O25: 0 | P25: 0 | S25: =SUM(E25:P25) -> 0 | T25: =(SUM(E25:P25)-SMALL(E25:P25,1)-SMALL(E25:P25,2)-SMALL(E25:P25,3)-SMALL(E25:P25,4)-SMALL(E25:P25,5)-SMALL(E25:P25,6)) -> 0
A26: 22 | E26: 0 | F26: 0 | G26: 0 | H26: 0 | I26: 0 | J26: 0 | K26: 0 | L26: 0 | M26: 0 | N26: 0 | O26: 0 | P26: 0 | S26: =SUM(E26:P26) -> 0 | T26: =(SUM(E26:P26)-SMALL(E26:P26,1)-SMALL(E26:P26,2)-SMALL(E26:P26,3)-SMALL(E26:P26,4)-SMALL(E26:P26,5)-SMALL(E26:P26,6)) -> 0
A27: 23 | E27: 0 | F27: 0 | G27: 0 | H27: 0 | I27: 0 | J27: 0 | K27: 0 | L27: 0 | M27: 0 | N27: 0 | O27: 0 | P27: 0 | S27: =SUM(E27:P27) -> 0 | T27: =(SUM(E27:P27)-SMALL(E27:P27,1)-SMALL(E27:P27,2)-SMALL(E27:P27,3)-SMALL(E27:P27,4)-SMALL(E27:P27,5)-SMALL(E27:P27,6)) -> 0
A28: 24 | E28: 0 | F28: 0 | G28: 0 | H28: 0 | I28: 0 | J28: 0 | K28: 0 | L28: 0 | M28: 0 | N28: 0 | O28: 0 | P28: 0 | S28: =SUM(E28:P28) -> 0 | T28: =(SUM(E28:P28)-SMALL(E28:P28,1)-SMALL(E28:P28,2)-SMALL(E28:P28,3)-SMALL(E28:P28,4)-SMALL(E28:P28,5)-SMALL(E28:P28,6)) -> 0
A29: 25 | E29: 0 | F29: 0 | G29: 0 | H29: 0 | I29: 0 | J29: 0 | K29: 0 | L29: 0 | M29: 0 | N29: 0 | O29: 0 | P29: 0 | S29: =SUM(E29:P29) -> 0 | T29: =(SUM(E29:P29)-SMALL(E29:P29,1)-SMALL(E29:P29,2)-SMALL(E29:P29,3)-SMALL(E29:P29,4)-SMALL(E29:P29,5)-SMALL(E29:P29,6)) -> 0
A30: 26 | E30: 0 | F30: 0 | G30: 0 | H30: 0 | I30: 0 | J30: 0 | K30: 0 | L30: 0 | M30: 0 | N30: 0 | O30: 0 | P30: 0 | S30: =SUM(E30:P30) -> 0 | T30: =(SUM(E30:P30)-SMALL(E30:P30,1)-SMALL(E30:P30,2)-SMALL(E30:P30,3)-SMALL(E30:P30,4)-SMALL(E30:P30,5)-SMALL(E30:P30,6)) -> 0
A31: 27 | E31: 0 | F31: 0 | G31: 0 | H31: 0 | I31: 0 | J31: 0 | K31: 0 | L31: 0 | M31: 0 | N31: 0 | O31: 0 | P31: 0 | S31: =SUM(E31:P31) -> 0 | T31: =(SUM(E31:P31)-SMALL(E31:P31,1)-SMALL(E31:P31,2)-SMALL(E31:P31,3)-SMALL(E31:P31,4)-SMALL(E31:P31,5)-SMALL(E31:P31,6)) -> 0
A32: 28 | E32: 0 | F32: 0 | G32: 0 | H32: 0 | I32: 0 | J32: 0 | K32: 0 | L32: 0 | M32: 0 | N32: 0 | O32: 0 | P32: 0 | S32: =SUM(E32:P32) -> 0 | T32: =(SUM(E32:P32)-SMALL(E32:P32,1)-SMALL(E32:P32,2)-SMALL(E32:P32,3)-SMALL(E32:P32,4)-SMALL(E32:P32,5)-SMALL(E32:P32,6)) -> 0
A33: 29 | E33: 0 | F33: 0 | G33: 0 | H33: 0 | I33: 0 | J33: 0 | K33: 0 | L33: 0 | M33: 0 | N33: 0 | O33: 0 | P33: 0 | S33: =SUM(E33:P33) -> 0 | T33: =(SUM(E33:P33)-SMALL(E33:P33,1)-SMALL(E33:P33,2)-SMALL(E33:P33,3)-SMALL(E33:P33,4)-SMALL(E33:P33,5)-SMALL(E33:P33,6)) -> 0
A34: 30 | E34: 0 | F34: 0 | G34: 0 | H34: 0 | I34: 0 | J34: 0 | K34: 0 | L34: 0 | M34: 0 | N34: 0 | O34: 0 | P34: 0 | S34: =SUM(E34:P34) -> 0 | T34: =(SUM(E34:P34)-SMALL(E34:P34,1)-SMALL(E34:P34,2)-SMALL(E34:P34,3)-SMALL(E34:P34,4)-SMALL(E34:P34,5)-SMALL(E34:P34,6)) -> 0
A35: 31 | E35: 0 | F35: 0 | G35: 0 | H35: 0 | I35: 0 | J35: 0 | K35: 0 | L35: 0 | M35: 0 | N35: 0 | O35: 0 | P35: 0 | S35: =SUM(E35:P35) -> 0 | T35: =(SUM(E35:P35)-SMALL(E35:P35,1)-SMALL(E35:P35,2)-SMALL(E35:P35,3)-SMALL(E35:P35,4)-SMALL(E35:P35,5)-SMALL(E35:P35,6)) -> 0
A36: 32 | E36: 0 | F36: 0 | G36: 0 | H36: 0 | I36: 0 | J36: 0 | K36: 0 | L36: 0 | M36: 0 | N36: 0 | O36: 0 | P36: 0 | S36: =SUM(E36:P36) -> 0 | T36: =(SUM(E36:P36)-SMALL(E36:P36,1)-SMALL(E36:P36,2)-SMALL(E36:P36,3)-SMALL(E36:P36,4)-SMALL(E36:P36,5)-SMALL(E36:P36,6)) -> 0
A37: 33 | E37: 0 | F37: 0 | G37: 0 | H37: 0 | I37: 0 | J37: 0 | K37: 0 | L37: 0 | M37: 0 | N37: 0 | O37: 0 | P37: 0 | S37: =SUM(E37:P37) -> 0 | T37: =(SUM(E37:P37)-SMALL(E37:P37,1)-SMALL(E37:P37,2)-SMALL(E37:P37,3)-SMALL(E37:P37,4)-SMALL(E37:P37,5)-SMALL(E37:P37,6)) -> 0
A38: 34 | E38: 0 | F38: 0 | G38: 0 | H38: 0 | I38: 0 | J38: 0 | K38: 0 | L38: 0 | M38: 0 | N38: 0 | O38: 0 | P38: 0 | S38: =SUM(E38:P38) -> 0 | T38: =(SUM(E38:P38)-SMALL(E38:P38,1)-SMALL(E38:P38,2)-SMALL(E38:P38,3)-SMALL(E38:P38,4)-SMALL(E38:P38,5)-SMALL(E38:P38,6)) -> 0
A39: 35 | E39: 0 | F39: 0 | G39: 0 | H39: 0 | I39: 0 | J39: 0 | K39: 0 | L39: 0 | M39: 0 | N39: 0 | O39: 0 | P39: 0 | S39: =SUM(E39:P39) -> 0 | T39: =(SUM(E39:P39)-SMALL(E39:P39,1)-SMALL(E39:P39,2)-SMALL(E39:P39,3)-SMALL(E39:P39,4)-SMALL(E39:P39,5)-SMALL(E39:P39,6)) -> 0
A40: 36 | E40: 0 | F40: 0 | G40: 0 | H40: 0 | I40: 0 | J40: 0 | K40: 0 | L40: 0 | M40: 0 | N40: 0 | O40: 0 | P40: 0 | S40: =SUM(E40:P40) -> 0 | T40: =(SUM(E40:P40)-SMALL(E40:P40,1)-SMALL(E40:P40,2)-SMALL(E40:P40,3)-SMALL(E40:P40,4)-SMALL(E40:P40,5)-SMALL(E40:P40,6)) -> 0
A41: 37 | E41: 0 | F41: 0 | G41: 0 | H41: 0 | I41: 0 | J41: 0 | K41: 0 | L41: 0 | M41: 0 | N41: 0 | O41: 0 | P41: 0 | S41: =SUM(E41:P41) -> 0 | T41: =(SUM(E41:P41)-SMALL(E41:P41,1)-SMALL(E41:P41,2)-SMALL(E41:P41,3)-SMALL(E41:P41,4)-SMALL(E41:P41,5)-SMALL(E41:P41,6)) -> 0
A42: 38 | E42: 0 | F42: 0 | G42: 0 | H42: 0 | I42: 0 | J42: 0 | K42: 0 | L42: 0 | M42: 0 | N42: 0 | O42: 0 | P42: 0 | S42: =SUM(E42:P42) -> 0 | T42: =(SUM(E42:P42)-SMALL(E42:P42,1)-SMALL(E42:P42,2)-SMALL(E42:P42,3)-SMALL(E42:P42,4)-SMALL(E42:P42,5)-SMALL(E42:P42,6)) -> 0
A43: 39 | E43: 0 | F43: 0 | G43: 0 | H43: 0 | I43: 0 | J43: 0 | K43: 0 | L43: 0 | M43: 0 | N43: 0 | O43: 0 | P43: 0 | S43: =SUM(E43:P43) -> 0 | T43: =(SUM(E43:P43)-SMALL(E43:P43,1)-SMALL(E43:P43,2)-SMALL(E43:P43,3)-SMALL(E43:P43,4)-SMALL(E43:P43,5)-SMALL(E43:P43,6)) -> 0
A44: 40 | E44: 0 | F44: 0 | G44: 0 | H44: 0 | I44: 0 | J44: 0 | K44: 0 | L44: 0 | M44: 0 | N44: 0 | O44: 0 | P44: 0 | S44: =SUM(E44:P44) -> 0 | T44: =(SUM(E44:P44)-SMALL(E44:P44,1)-SMALL(E44:P44,2)-SMALL(E44:P44,3)-SMALL(E44:P44,4)-SMALL(E44:P44,5)-SMALL(E44:P44,6)) -> 0
A45: 41 | E45: 0 | F45: 0 | G45: 0 | H45: 0 | I45: 0 | J45: 0 | K45: 0 | L45: 0 | M45: 0 | N45: 0 | O45: 0 | P45: 0 | S45: =SUM(E45:P45) -> 0 | T45: =(SUM(E45:P45)-SMALL(E45:P45,1)-SMALL(E45:P45,2)-SMALL(E45:P45,3)-SMALL(E45:P45,4)-SMALL(E45:P45,5)-SMALL(E45:P45,6)) -> 0
A46: 42 | E46: 0 | F46: 0 | G46: 0 | H46: 0 | I46: 0 | J46: 0 | K46: 0 | L46: 0 | M46: 0 | N46: 0 | O46: 0 | P46: 0 | S46: =SUM(E46:P46) -> 0 | T46: =(SUM(E46:P46)-SMALL(E46:P46,1)-SMALL(E46:P46,2)-SMALL(E46:P46,3)-SMALL(E46:P46,4)-SMALL(E46:P46,5)-SMALL(E46:P46,6)) -> 0
A47: 43 | E47: 0 | F47: 0 | G47: 0 | H47: 0 | I47: 0 | J47: 0 | K47: 0 | L47: 0 | M47: 0 | N47: 0 | O47: 0 | P47: 0 | S47: =SUM(E47:P47) -> 0 | T47: =(SUM(E47:P47)-SMALL(E47:P47,1)-SMALL(E47:P47,2)-SMALL(E47:P47,3)-SMALL(E47:P47,4)-SMALL(E47:P47,5)-SMALL(E47:P47,6)) -> 0
A48: 44 | E48: 0 | F48: 0 | G48: 0 | H48: 0 | I48: 0 | J48: 0 | K48: 0 | L48: 0 | M48: 0 | N48: 0 | O48: 0 | P48: 0 | S48: =SUM(E48:P48) -> 0 | T48: =(SUM(E48:P48)-SMALL(E48:P48,1)-SMALL(E48:P48,2)-SMALL(E48:P48,3)-SMALL(E48:P48,4)-SMALL(E48:P48,5)-SMALL(E48:P48,6)) -> 0
A49: 45 | E49: 0 | F49: 0 | G49: 0 | H49: 0 | I49: 0 | J49: 0 | K49: 0 | L49: 0 | M49: 0 | N49: 0 | O49: 0 | P49: 0 | S49: =SUM(E49:P49) -> 0 | T49: =(SUM(E49:P49)-SMALL(E49:P49,1)-SMALL(E49:P49,2)-SMALL(E49:P49,3)-SMALL(E49:P49,4)-SMALL(E49:P49,5)-SMALL(E49:P49,6)) -> 0
A50: 46 | E50: 0 | F50: 0 | G50: 0 | H50: 0 | I50: 0 | J50: 0 | K50: 0 | L50: 0 | M50: 0 | N50: 0 | O50: 0 | P50: 0 | S50: =SUM(E50:P50) -> 0 | T50: =(SUM(E50:P50)-SMALL(E50:P50,1)-SMALL(E50:P50,2)-SMALL(E50:P50,3)-SMALL(E50:P50,4)-SMALL(E50:P50,5)-SMALL(E50:P50,6)) -> 0
A51: 47 | E51: 0 | F51: 0 | G51: 0 | H51: 0 | I51: 0 | J51: 0 | K51: 0 | L51: 0 | M51: 0 | N51: 0 | O51: 0 | P51: 0 | S51: =SUM(E51:P51) -> 0 | T51: =(SUM(E51:P51)-SMALL(E51:P51,1)-SMALL(E51:P51,2)-SMALL(E51:P51,3)-SMALL(E51:P51,4)-SMALL(E51:P51,5)-SMALL(E51:P51,6)) -> 0
A52: 48 | E52: 0 | F52: 0 | G52: 0 | H52: 0 | I52: 0 | J52: 0 | K52: 0 | L52: 0 | M52: 0 | N52: 0 | O52: 0 | P52: 0 | S52: =SUM(E52:P52) -> 0 | T52: =(SUM(E52:P52)-SMALL(E52:P52,1)-SMALL(E52:P52,2)-SMALL(E52:P52,3)-SMALL(E52:P52,4)-SMALL(E52:P52,5)-SMALL(E52:P52,6)) -> 0
A53: 49 | E53: 0 | F53: 0 | G53: 0 | H53: 0 | I53: 0 | J53: 0 | K53: 0 | L53: 0 | M53: 0 | N53: 0 | O53: 0 | P53: 0 | S53: =SUM(E53:P53) -> 0 | T53: =(SUM(E53:P53)-SMALL(E53:P53,1)-SMALL(E53:P53,2)-SMALL(E53:P53,3)-SMALL(E53:P53,4)-SMALL(E53:P53,5)-SMALL(E53:P53,6)) -> 0
A54: 50 | E54: 0 | F54: 0 | G54: 0 | H54: 0 | I54: 0 | J54: 0 | K54: 0 | L54: 0 | M54: 0 | N54: 0 | O54: 0 | P54: 0 | S54: =SUM(E54:P54) -> 0 | T54: =(SUM(E54:P54)-SMALL(E54:P54,1)-SMALL(E54:P54,2)-SMALL(E54:P54,3)-SMALL(E54:P54,4)-SMALL(E54:P54,5)-SMALL(E54:P54,6)) -> 0
A55: 51 | E55: 0 | F55: 0 | G55: 0 | H55: 0 | I55: 0 | J55: 0 | K55: 0 | L55: 0 | M55: 0 | N55: 0 | O55: 0 | P55: 0 | S55: =SUM(E55:P55) -> 0 | T55: =(SUM(E55:P55)-SMALL(E55:P55,1)-SMALL(E55:P55,2)-SMALL(E55:P55,3)-SMALL(E55:P55,4)-SMALL(E55:P55,5)-SMALL(E55:P55,6)) -> 0
A56: 52 | E56: 0 | F56: 0 | G56: 0 | H56: 0 | I56: 0 | J56: 0 | K56: 0 | L56: 0 | M56: 0 | N56: 0 | O56: 0 | P56: 0 | S56: =SUM(E56:P56) -> 0 | T56: =(SUM(E56:P56)-SMALL(E56:P56,1)-SMALL(E56:P56,2)-SMALL(E56:P56,3)-SMALL(E56:P56,4)-SMALL(E56:P56,5)-SMALL(E56:P56,6)) -> 0
A57: 53 | E57: 0 | F57: 0 | G57: 0 | H57: 0 | I57: 0 | J57: 0 | K57: 0 | L57: 0 | M57: 0 | N57: 0 | O57: 0 | P57: 0 | S57: =SUM(E57:P57) -> 0 | T57: =(SUM(E57:P57)-SMALL(E57:P57,1)-SMALL(E57:P57,2)-SMALL(E57:P57,3)-SMALL(E57:P57,4)-SMALL(E57:P57,5)-SMALL(E57:P57,6)) -> 0
A58: 54 | E58: 0 | F58: 0 | G58: 0 | H58: 0 | I58: 0 | J58: 0 | K58: 0 | L58: 0 | M58: 0 | N58: 0 | O58: 0 | P58: 0 | S58: =SUM(E58:P58) -> 0 | T58: =(SUM(E58:P58)-SMALL(E58:P58,1)-SMALL(E58:P58,2)-SMALL(E58:P58,3)-SMALL(E58:P58,4)-SMALL(E58:P58,5)-SMALL(E58:P58,6)) -> 0
A59: 55 | E59: 0 | F59: 0 | G59: 0 | H59: 0 | I59: 0 | J59: 0 | K59: 0 | L59: 0 | M59: 0 | N59: 0 | O59: 0 | P59: 0 | S59: =SUM(E59:P59) -> 0 | T59: =(SUM(E59:P59)-SMALL(E59:P59,1)-SMALL(E59:P59,2)-SMALL(E59:P59,3)-SMALL(E59:P59,4)-SMALL(E59:P59,5)-SMALL(E59:P59,6)) -> 0
A60: 56 | E60: 0 | F60: 0 | G60: 0 | H60: 0 | I60: 0 | J60: 0 | K60: 0 | L60: 0 | M60: 0 | N60: 0 | O60: 0 | P60: 0 | S60: =SUM(E60:P60) -> 0 | T60: =(SUM(E60:P60)-SMALL(E60:P60,1)-SMALL(E60:P60,2)-SMALL(E60:P60,3)-SMALL(E60:P60,4)-SMALL(E60:P60,5)-SMALL(E60:P60,6)) -> 0
A61: 57 | E61: 0 | F61: 0 | G61: 0 | H61: 0 | I61: 0 | J61: 0 | K61: 0 | L61: 0 | M61: 0 | N61: 0 | O61: 0 | P61: 0 | S61: =SUM(E61:P61) -> 0 | T61: =(SUM(E61:P61)-SMALL(E61:P61,1)-SMALL(E61:P61,2)-SMALL(E61:P61,3)-SMALL(E61:P61,4)-SMALL(E61:P61,5)-SMALL(E61:P61,6)) -> 0
A62: 58 | E62: 0 | F62: 0 | G62: 0 | H62: 0 | I62: 0 | J62: 0 | K62: 0 | L62: 0 | M62: 0 | N62: 0 | O62: 0 | P62: 0 | S62: =SUM(E62:P62) -> 0 | T62: =(SUM(E62:P62)-SMALL(E62:P62,1)-SMALL(E62:P62,2)-SMALL(E62:P62,3)-SMALL(E62:P62,4)-SMALL(E62:P62,5)-SMALL(E62:P62,6)) -> 0
A63: 59 | E63: 0 | F63: 0 | G63: 0 | H63: 0 | I63: 0 | J63: 0 | K63: 0 | L63: 0 | M63: 0 | N63: 0 | O63: 0 | P63: 0 | S63: =SUM(E63:P63) -> 0 | T63: =(SUM(E63:P63)-SMALL(E63:P63,1)-SMALL(E63:P63,2)-SMALL(E63:P63,3)-SMALL(E63:P63,4)-SMALL(E63:P63,5)-SMALL(E63:P63,6)) -> 0
A64: 60 | E64: 0 | F64: 0 | G64: 0 | H64: 0 | I64: 0 | J64: 0 | K64: 0 | L64: 0 | M64: 0 | N64: 0 | O64: 0 | P64: 0 | S64: =SUM(E64:P64) -> 0 | T64: =(SUM(E64:P64)-SMALL(E64:P64,1)-SMALL(E64:P64,2)-SMALL(E64:P64,3)-SMALL(E64:P64,4)-SMALL(E64:P64,5)-SMALL(E64:P64,6)) -> 0

Sheet F U16
A1: LVC-sammanställning Värmland 2016 | R1: Ändra ej i grå fält
E2: Branäs | G2: Kil | I2: Sunne | K2: Sunne | M2: Valfjället | O2: Grums | Q2: Grums
A3: Klass: | B3: Flickor U16 | E3: GS1 | F3: GS2 | G3: SL1 | H3: SL2 | I3: GS3 | J3: GS4 | K3: SG1 | L3: SG2 | M3: SG3 | N3: SG4 | O3: SL3 | P3: SL4 | Q3: SL5 | R3: SL6
A4: Plac | B4: Namn | C4: År | D4: Klubb | E4: 1 | F4: 2 | G4: 3 | H4: 4 | I4: 5 | J4: 6 | K4: 7 | L4: 8 | M4: 9 | N4: 10 | O4: 11 | P4: 12 | Q4: 13 | R4: 14 | S4: Tot: | T4: 6 Bästa
A5: 1 | E5: 0 | F5: 0 | G5: 0 | H5: 0 | I5: 0 | J5: 0 | K5: 0 | L5: 0 | M5: 0 | N5: 0 | O5: 0 | P5: 0 | S5: =SUM(E5:P5) -> 0 | T5: =(SUM(E5:P5)-SMALL(E5:P5,1)-SMALL(E5:P5,2)-SMALL(E5:P5,3)-SMALL(E5:P5,4)-SMALL(E5:P5,5)-SMALL(E5:P5,6)) -> 0
A6: 2 | E6: 0 | F6: 0 | G6: 0 | H6: 0 | I6: 0 | J6: 0 | K6: 0 | L6: 0 | M6: 0 | N6: 0 | O6: 0 | P6: 0 | S6: =SUM(E6:P6) -> 0 | T6: =(SUM(E6:P6)-SMALL(E6:P6,1)-SMALL(E6:P6,2)-SMALL(E6:P6,3)-SMALL(E6:P6,4)-SMALL(E6:P6,5)-SMALL(E6:P6,6)) -> 0
A7: 3 | E7: 0 | F7: 0 | G7: 0 | H7: 0 | I7: 0 | J7: 0 | K7: 0 | L7: 0 | M7: 0 | N7: 0 | O7: 0 | P7: 0 | S7: 0 | T7: 0
A8: 4 | E8: 0 | F8: 0 | G8: 0 | H8: 0 | I8: 0 | J8: 0 | K8: 0 | L8: 0 | M8: 0 | N8: 0 | O8: 0 | P8: 0 | S8: 0 | T8: 0
A9: 5 | E9: 0 | F9: 0 | G9: 0 | H9: 0 | I9: 0 | J9: 0 | K9: 0 | L9: 0 | M9: 0 | N9: 0 | O9: 0 | P9: 0 | S9: 0 | T9: 0
A10: 6 | E10: 0 | F10: 0 | G10: 0 | H10: 0 | I10: 0 | J10: 0 | K10: 0 | L10: 0 | M10: 0 | N10: 0 | O10: 0 | P10: 0 | S10: 0 | T10: 0
A11: 7 | E11: 0 | F11: 0 | G11: 0 | H11: 0 | I11: 0 | J11: 0 | K11: 0 | L11: 0 | M11: 0 | N11: 0 | O11: 0 | P11: 0 | S11: 0 | T11: 0
A12: 8 | E12: 0 | F12: 0 | G12: 0 | H12: 0 | I12: 0 | J12: 0 | K12: 0 | L12: 0 | M12: 0 | N12: 0 | O12: 0 | P12: 0 | S12: 0 | T12: 0
A13: 9 | E13: 0 | F13: 0 | G13: 0 | H13: 0 | I13: 0 | J13: 0 | K13: 0 | L13: 0 | M13: 0 | N13: 0 | O13: 0 | P13: 0 | S13: 0 | T13: 0
A14: 10 | E14: 0 | F14: 0 | G14: 0 | H14: 0 | I14: 0 | J14: 0 | K14: 0 | L14: 0 | M14: 0 | N14: 0 | O14: 0 | P14: 0 | S14: 0 | T14: 0
A15: 11 | E15: 0 | F15: 0 | G15: 0 | H15: 0 | I15: 0 | J15: 0 | K15: 0 | L15: 0 | M15: 0 | N15: 0 | O15: 0 | P15: 0 | S15: 0 | T15: 0
A16: 12 | E16: 0 | F16: 0 | G16: 0 | H16: 0 | I16: 0 | J16: 0 | K16: 0 | L16: 0 | M16: 0 | N16: 0 | O16: 0 | P16: 0 | S16: 0 | T16: 0
A17: 13 | E17: 0 | F17: 0 | G17: 0 | H17: 0 | I17: 0 | J17: 0 | K17: 0 | L17: 0 | M17: 0 | N17: 0 | O17: 0 | P17: 0 | S17: 0 | T17: 0
A18: 14 | E18: 0 | F18: 0 | G18: 0 | H18: 0 | I18: 0 | J18: 0 | K18: 0 | L18: 0 | M18: 0 | N18: 0 | O18: 0 | P18: 0 | S18: 0 | T18: 0
A19: 15 | E19: 0 | F19: 0 | G19: 0 | H19: 0 | I19: 0 | J19: 0 | K19: 0 | L19: 0 | M19: 0 | N19: 0 | O19: 0 | P19: 0 | S19: 0 | T19: 0
A20: 16 | E20: 0 | F20: 0 | G20: 0 | H20: 0 | I20: 0 | J20: 0 | K20: 0 | L20: 0 | M20: 0 | N20: 0 | O20: 0 | P20: 0 | S20: 0 | T20: 0
A21: 17 | E21: 0 | F21: 0 | G21: 0 | H21: 0 | I21: 0 | J21: 0 | K21: 0 | L21: 0 | M21: 0 | N21: 0 | O21: 0 | P21: 0 | S21: 0 | T21: 0
A22: 18 | E22: 0 | F22: 0 | G22: 0 | H22: 0 | I22: 0 | J22: 0 | K22: 0 | L22: 0 | M22: 0 | N22: 0 | O22: 0 | P22: 0 | S22: 0 | T22: 0
A23: 19 | E23: 0 | F23: 0 | G23: 0 | H23: 0 | I23: 0 | J23: 0 | K23: 0 | L23: 0 | M23: 0 | N23: 0 | O23: 0 | P23: 0 | S23: 0 | T23: 0
A24: 20 | E24: 0 | F24: 0 | G24: 0 | H24: 0 | I24: 0 | J24: 0 | K24: 0 | L24: 0 | M24: 0 | N24: 0 | O24: 0 | P24: 0 | S24: 0 | T24: 0
A25: 21 | E25: 0 | F25: 0 | G25: 0 | H25: 0 | I25: 0 | J25: 0 | K25: 0 | L25: 0 | M25: 0 | N25: 0 | O25: 0 | P25: 0 | S25: 0 | T25: 0
A26: 22 | E26: 0 | F26: 0 | G26: 0 | H26: 0 | I26: 0 | J26: 0 | K26: 0 | L26: 0 | M26: 0 | N26: 0 | O26: 0 | P26: 0 | S26: 0 | T26: 0
A27: 23 | E27: 0 | F27: 0 | G27: 0 | H27: 0 | I27: 0 | J27: 0 | K27: 0 | L27: 0 | M27: 0 | N27: 0 | O27: 0 | P27: 0 | S27: 0 | T27: 0
A28: 24 | E28: 0 | F28: 0 | G28: 0 | H28: 0 | I28: 0 | J28: 0 | K28: 0 | L28: 0 | M28: 0 | N28: 0 | O28: 0 | P28: 0 | S28: 0 | T28: 0
A29: 25 | E29: 0 | F29: 0 | G29: 0 | H29: 0 | I29: 0 | J29: 0 | K29: 0 | L29: 0 | M29: 0 | N29: 0 | O29: 0 | P29: 0 | S29: 0 | T29: 0
A30: 26 | E30: 0 | F30: 0 | G30: 0 | H30: 0 | I30: 0 | J30: 0 | K30: 0 | L30: 0 | M30: 0 | N30: 0 | O30: 0 | P30: 0 | S30: 0 | T30: 0
A31: 27 | E31: 0 | F31: 0 | G31: 0 | H31: 0 | I31: 0 | J31: 0 | K31: 0 | L31: 0 | M31: 0 | N31: 0 | O31: 0 | P31: 0 | S31: 0 | T31: 0
A32: 28 | E32: 0 | F32: 0 | G32: 0 | H32: 0 | I32: 0 | J32: 0 | K32: 0 | L32: 0 | M32: 0 | N32: 0 | O32: 0 | P32: 0 | S32: 0 | T32: 0
A33: 29 | E33: 0 | F33: 0 | G33: 0 | H33: 0 | I33: 0 | J33: 0 | K33: 0 | L33: 0 | M33: 0 | N33: 0 | O33: 0 | P33: 0 | S33: 0 | T33: 0
A34: 30 | E34: 0 | F34: 0 | G34: 0 | H34: 0 | I34: 0 | J34: 0 | K34: 0 | L34: 0 | M34: 0 | N34: 0 | O34: 0 | P34: 0 | S34: 0 | T34: 0
A35: 31 | E35: 0 | F35: 0 | G35: 0 | H35: 0 | I35: 0 | J35: 0 | K35: 0 | L35: 0 | M35: 0 | N35: 0 | O35: 0 | P35: 0 | S35: 0 | T35: 0
A36: 32 | E36: 0 | F36: 0 | G36: 0 | H36: 0 | I36: 0 | J36: 0 | K36: 0 | L36: 0 | M36: 0 | N36: 0 | O36: 0 | P36: 0 | S36: 0 | T36: 0
A37: 33 | E37: 0 | F37: 0 | G37: 0 | H37: 0 | I37: 0 | J37: 0 | K37: 0 | L37: 0 | M37: 0 | N37: 0 | O37: 0 | P37: 0 | S37: 0 | T37: 0
A38: 34 | E38: 0 | F38: 0 | G38: 0 | H38: 0 | I38: 0 | J38: 0 | K38: 0 | L38: 0 | M38: 0 | N38: 0 | O38: 0 | P38: 0 | S38: 0 | T38: 0
A39: 35 | E39: 0 | F39: 0 | G39: 0 | H39: 0 | I39: 0 | J39: 0 | K39: 0 | L39: 0 | M39: 0 | N39: 0 | O39: 0 | P39: 0 | S39: 0 | T39: 0
A40: 36 | E40: 0 | F40: 0 | G40: 0 | H40: 0 | I40: 0 | J40: 0 | K40: 0 | L40: 0 | M40: 0 | N40: 0 | O40: 0 | P40: 0 | S40: 0 | T40: 0
A41: 37 | E41: 0 | F41: 0 | G41: 0 | H41: 0 | I41: 0 | J41: 0 | K41: 0 | L41: 0 | M41: 0 | N41: 0 | O41: 0 | P41: 0 | S41: 0 | T41: 0
A42: 38 | E42: 0 | F42: 0 | G42: 0 | H42: 0 | I42: 0 | J42: 0 | K42: 0 | L42: 0 | M42: 0 | N42: 0 | O42: 0 | P42: 0 | S42: 0 | T42: 0
A43: 39 | E43: 0 | F43: 0 | G43: 0 | H43: 0 | I43: 0 | J43: 0 | K43: 0 | L43: 0 | M43: 0 | N43: 0 | O43: 0 | P43: 0 | S43: 0 | T43: 0
A44: 40 | E44: 0 | F44: 0 | G44: 0 | H44: 0 | I44: 0 | J44: 0 | K44: 0 | L44: 0 | M44: 0 | N44: 0 | O44: 0 | P44: 0 | S44: 0 | T44: 0
A45: 41 | E45: 0 | F45: 0 | G45: 0 | H45: 0 | I45: 0 | J45: 0 | K45: 0 | L45: 0 | M45: 0 | N45: 0 | O45: 0 | P45: 0 | S45: 0 | T45: 0
A46: 42 | E46: 0 | F46: 0 | G46: 0 | H46: 0 | I46: 0 | J46: 0 | K46: 0 | L46: 0 | M46: 0 | N46: 0 | O46: 0 | P46: 0 | S46: 0 | T46: 0
A47: 43 | E47: 0 | F47: 0 | G47: 0 | H47: 0 | I47: 0 | J47: 0 | K47: 0 | L47: 0 | M47: 0 | N47: 0 | O47: 0 | P47: 0 | S47: 0 | T47: 0
A48: 44 | E48: 0 | F48: 0 | G48: 0 | H48: 0 | I48: 0 | J48: 0 | K48: 0 | L48: 0 | M48: 0 | N48: 0 | O48: 0 | P48: 0 | S48: 0 | T48: 0
A49: 45 | E49: 0 | F49: 0 | G49: 0 | H49: 0 | I49: 0 | J49: 0 | K49: 0 | L49: 0 | M49: 0 | N49: 0 | O49: 0 | P49: 0 | S49: 0 | T49: 0
A50: 46 | E50: 0 | F50: 0 | G50: 0 | H50: 0 | I50: 0 | J50: 0 | K50: 0 | L50: 0 | M50: 0 | N50: 0 | O50: 0 | P50: 0 | S50: 0 | T50: 0
A51: 47 | E51: 0 | F51: 0 | G51: 0 | H51: 0 | I51: 0 | J51: 0 | K51: 0 | L51: 0 | M51: 0 | N51: 0 | O51: 0 | P51: 0 | S51: 0 | T51: 0
A52: 48 | E52: 0 | F52: 0 | G52: 0 | H52: 0 | I52: 0 | J52: 0 | K52: 0 | L52: 0 | M52: 0 | N52: 0 | O52: 0 | P52: 0 | S52: 0 | T52: 0
A53: 49 | E53: 0 | F53: 0 | G53: 0 | H53: 0 | I53: 0 | J53: 0 | K53: 0 | L53: 0 | M53: 0 | N53: 0 | O53: 0 | P53: 0 | S53: 0 | T53: 0
A54: 50 | E54: 0 | F54: 0 | G54: 0 | H54: 0 | I54: 0 | J54: 0 | K54: 0 | L54: 0 | M54: 0 | N54: 0 | O54: 0 | P54: 0 | S54: 0 | T54: 0
A55: 51 | E55: 0 | F55: 0 | G55: 0 | H55: 0 | I55: 0 | J55: 0 | K55: 0 | L55: 0 | M55: 0 | N55: 0 | O55: 0 | P55: 0 | S55: 0 | T55: 0
A56: 52 | E56: 0 | F56: 0 | G56: 0 | H56: 0 | I56: 0 | J56: 0 | K56: 0 | L56: 0 | M56: 0 | N56: 0 | O56: 0 | P56: 0 | S56: 0 | T56: 0
A57: 53 | E57: 0 | F57: 0 | G57: 0 | H57: 0 | I57: 0 | J57: 0 | K57: 0 | L57: 0 | M57: 0 | N57: 0 | O57: 0 | P57: 0 | S57: 0 | T57: 0
A58: 54 | E58: 0 | F58: 0 | G58: 0 | H58: 0 | I58: 0 | J58: 0 | K58: 0 | L58: 0 | M58: 0 | N58: 0 | O58: 0 | P58: 0 | S58: 0 | T58: 0
A59: 55 | E59: 0 | F59: 0 | G59: 0 | H59: 0 | I59: 0 | J59: 0 | K59: 0 | L59: 0 | M59: 0 | N59: 0 | O59: 0 | P59: 0 | S59: 0 | T59: 0
A60: 56 | E60: 0 | F60: 0 | G60: 0 | H60: 0 | I60: 0 | J60: 0 | K60: 0 | L60: 0 | M60: 0 | N60: 0 | O60: 0 | P60: 0 | S60: 0 | T60: 0
A61: 57 | E61: 0 | F61: 0 | G61: 0 | H61: 0 | I61: 0 | J61: 0 | K61: 0 | L61: 0 | M61: 0 | N61: 0 | O61: 0 | P61: 0 | S61: 0 | T61: 0
A62: 58 | E62: 0 | F62: 0 | G62: 0 | H62: 0 | I62: 0 | J62: 0 | K62: 0 | L62: 0 | M62: 0 | N62: 0 | O62: 0 | P62: 0 | S62: 0 | T62: 0
A63: 59 | E63: 0 | F63: 0 | G63: 0 | H63: 0 | I63: 0 | J63: 0 | K63: 0 | L63: 0 | M63: 0 | N63: 0 | O63: 0 | P63: 0 | S63: 0 | T63: 0
A64: 60 | E64: 0 | F64: 0 | G64: 0 | H64: 0 | I64: 0 | J64: 0 | K64: 0 | L64: 0 | M64: 0 | N64: 0 | O64: 0 | P64: 0 | S64: 0 | T64: 0

Sheet P U16
A1: LVC-sammanställning Värmland 2016 | R1: Ändra ej i grå fält
E2: Branäs | G2: Kil | I2: Sunne | K2: Sunne | M2: Valfjället | O2: Grums | Q2: Grums
A3: Klass: | B3: Pojkar U16 | E3: GS1 | F3: GS2 | G3: SL1 | H3: SL2 | I3: GS3 | J3: GS4 | K3: SG1 | L3: SG2 | M3: SG3 | N3: SG4 | O3: SL3 | P3: SL4 | Q3: SL5 | R3: SL6
A4: Plac | B4: Namn | C4: År | D4: Klubb | E4: 1 | F4: 2 | G4: 3 | H4: 4 | I4: 5 | J4: 6 | K4: 7 | L4: 8 | M4: 9 | N4: 10 | O4: 11 | P4: 12 | Q4: 13 | R4: 14 | S4: Tot: | T4: 6 Bästa
A5: 1 | E5: 0 | F5: 0 | G5: 0 | H5: 0 | I5: 0 | J5: 0 | K5: 0 | L5: 0 | M5: 0 | N5: 0 | O5: 0 | P5: 0 | S5: =SUM(E5:P5) -> 0 | T5: =(SUM(E5:P5)-SMALL(E5:P5,1)-SMALL(E5:P5,2)-SMALL(E5:P5,3)-SMALL(E5:P5,4)-SMALL(E5:P5,5)-SMALL(E5:P5,6)) -> 0
A6: 2 | E6: 0 | F6: 0 | G6: 0 | H6: 0 | I6: 0 | J6: 0 | K6: 0 | L6: 0 | M6: 0 | N6: 0 | O6: 0 | P6: 0 | S6: =SUM(E6:P6) -> 0 | T6: =(SUM(E6:P6)-SMALL(E6:P6,1)-SMALL(E6:P6,2)-SMALL(E6:P6,3)-SMALL(E6:P6,4)-SMALL(E6:P6,5)-SMALL(E6:P6,6)) -> 0
A7: 3 | E7: 0 | F7: 0 | G7: 0 | H7: 0 | I7: 0 | J7: 0 | K7: 0 | L7: 0 | M7: 0 | N7: 0 | O7: 0 | P7: 0 | S7: 0 | T7: 0
A8: 4 | E8: 0 | F8: 0 | G8: 0 | H8: 0 | I8: 0 | J8: 0 | K8: 0 | L8: 0 | M8: 0 | N8: 0 | O8: 0 | P8: 0 | S8: 0 | T8: 0
A9: 5 | E9: 0 | F9: 0 | G9: 0 | H9: 0 | I9: 0 | J9: 0 | K9: 0 | L9: 0 | M9: 0 | N9: 0 | O9: 0 | P9: 0 | S9: 0 | T9: 0
A10: 6 | E10: 0 | F10: 0 | G10: 0 | H10: 0 | I10: 0 | J10: 0 | K10: 0 | L10: 0 | M10: 0 | N10: 0 | O10: 0 | P10: 0 | S10: 0 | T10: 0
A11: 7 | E11: 0 | F11: 0 | G11: 0 | H11: 0 | I11: 0 | J11: 0 | K11: 0 | L11: 0 | M11: 0 | N11: 0 | O11: 0 | P11: 0 | S11: 0 | T11: 0
A12: 8 | E12: 0 | F12: 0 | G12: 0 | H12: 0 | I12: 0 | J12: 0 | K12: 0 | L12: 0 | M12: 0 | N12: 0 | O12: 0 | P12: 0 | S12: 0 | T12: 0
A13: 9 | E13: 0 | F13: 0 | G13: 0 | H13: 0 | I13: 0 | J13: 0 | K13: 0 | L13: 0 | M13: 0 | N13: 0 | O13: 0 | P13: 0 | S13: 0 | T13: 0
A14: 10 | E14: 0 | F14: 0 | G14: 0 | H14: 0 | I14: 0 | J14: 0 | K14: 0 | L14: 0 | M14: 0 | N14: 0 | O14: 0 | P14: 0 | S14: 0 | T14: 0
A15: 11 | E15: 0 | F15: 0 | G15: 0 | H15: 0 | I15: 0 | J15: 0 | K15: 0 | L15: 0 | M15: 0 | N15: 0 | O15: 0 | P15: 0 | S15: 0 | T15: 0
A16: 12 | E16: 0 | F16: 0 | G16: 0 | H16: 0 | I16: 0 | J16: 0 | K16: 0 | L16: 0 | M16: 0 | N16: 0 | O16: 0 | P16: 0 | S16: 0 | T16: 0
A17: 13 | E17: 0 | F17: 0 | G17: 0 | H17: 0 | I17: 0 | J17: 0 | K17: 0 | L17: 0 | M17: 0 | N17: 0 | O17: 0 | P17: 0 | S17: 0 | T17: 0
A18: 14 | E18: 0 | F18: 0 | G18: 0 | H18: 0 | I18: 0 | J18: 0 | K18: 0 | L18: 0 | M18: 0 | N18: 0 | O18: 0 | P18: 0 | S18: 0 | T18: 0
A19: 15 | E19: 0 | F19: 0 | G19: 0 | H19: 0 | I19: 0 | J19: 0 | K19: 0 | L19: 0 | M19: 0 | N19: 0 | O19: 0 | P19: 0 | S19: 0 | T19: 0
A20: 16 | E20: 0 | F20: 0 | G20: 0 | H20: 0 | I20: 0 | J20: 0 | K20: 0 | L20: 0 | M20: 0 | N20: 0 | O20: 0 | P20: 0 | S20: 0 | T20: 0
A21: 17 | E21: 0 | F21: 0 | G21: 0 | H21: 0 | I21: 0 | J21: 0 | K21: 0 | L21: 0 | M21: 0 | N21: 0 | O21: 0 | P21: 0 | S21: 0 | T21: 0
A22: 18 | E22: 0 | F22: 0 | G22: 0 | H22: 0 | I22: 0 | J22: 0 | K22: 0 | L22: 0 | M22: 0 | N22: 0 | O22: 0 | P22: 0 | S22: 0 | T22: 0
A23: 19 | E23: 0 | F23: 0 | G23: 0 | H23: 0 | I23: 0 | J23: 0 | K23: 0 | L23: 0 | M23: 0 | N23: 0 | O23: 0 | P23: 0 | S23: 0 | T23: 0
A24: 20 | E24: 0 | F24: 0 | G24: 0 | H24: 0 | I24: 0 | J24: 0 | K24: 0 | L24: 0 | M24: 0 | N24: 0 | O24: 0 | P24: 0 | S24: 0 | T24: 0
A25: 21 | E25: 0 | F25: 0 | G25: 0 | H25: 0 | I25: 0 | J25: 0 | K25: 0 | L25: 0 | M25: 0 | N25: 0 | O25: 0 | P25: 0 | S25: 0 | T25: 0
A26: 22 | E26: 0 | F26: 0 | G26: 0 | H26: 0 | I26: 0 | J26: 0 | K26: 0 | L26: 0 | M26: 0 | N26: 0 | O26: 0 | P26: 0 | S26: 0 | T26: 0
A27: 23 | E27: 0 | F27: 0 | G27: 0 | H27: 0 | I27: 0 | J27: 0 | K27: 0 | L27: 0 | M27: 0 | N27: 0 | O27: 0 | P27: 0 | S27: 0 | T27: 0
A28: 24 | E28: 0 | F28: 0 | G28: 0 | H28: 0 | I28: 0 | J28: 0 | K28: 0 | L28: 0 | M28: 0 | N28: 0 | O28: 0 | P28: 0 | S28: 0 | T28: 0
A29: 25 | E29: 0 | F29: 0 | G29: 0 | H29: 0 | I29: 0 | J29: 0 | K29: 0 | L29: 0 | M29: 0 | N29: 0 | O29: 0 | P29: 0 | S29: 0 | T29: 0
A30: 26 | E30: 0 | F30: 0 | G30: 0 | H30: 0 | I30: 0 | J30: 0 | K30: 0 | L30: 0 | M30: 0 | N30: 0 | O30: 0 | P30: 0 | S30: 0 | T30: 0
A31: 27 | E31: 0 | F31: 0 | G31: 0 | H31: 0 | I31: 0 | J31: 0 | K31: 0 | L31: 0 | M31: 0 | N31: 0 | O31: 0 | P31: 0 | S31: 0 | T31: 0
A32: 28 | E32: 0 | F32: 0 | G32: 0 | H32: 0 | I32: 0 | J32: 0 | K32: 0 | L32: 0 | M32: 0 | N32: 0 | O32: 0 | P32: 0 | S32: 0 | T32: 0
A33: 29 | E33: 0 | F33: 0 | G33: 0 | H33: 0 | I33: 0 | J33: 0 | K33: 0 | L33: 0 | M33: 0 | N33: 0 | O33: 0 | P33: 0 | S33: 0 | T33: 0
A34: 30 | E34: 0 | F34: 0 | G34: 0 | H34: 0 | I34: 0 | J34: 0 | K34: 0 | L34: 0 | M34: 0 | N34: 0 | O34: 0 | P34: 0 | S34: 0 | T34: 0
A35: 31 | E35: 0 | F35: 0 | G35: 0 | H35: 0 | I35: 0 | J35: 0 | K35: 0 | L35: 0 | M35: 0 | N35: 0 | O35: 0 | P35: 0 | S35: 0 | T35: 0
A36: 32 | E36: 0 | F36: 0 | G36: 0 | H36: 0 | I36: 0 | J36: 0 | K36: 0 | L36: 0 | M36: 0 | N36: 0 | O36: 0 | P36: 0 | S36: 0 | T36: 0
A37: 33 | E37: 0 | F37: 0 | G37: 0 | H37: 0 | I37: 0 | J37: 0 | K37: 0 | L37: 0 | M37: 0 | N37: 0 | O37: 0 | P37: 0 | S37: 0 | T37: 0
A38: 34 | E38: 0 | F38: 0 | G38: 0 | H38: 0 | I38: 0 | J38: 0 | K38: 0 | L38: 0 | M38: 0 | N38: 0 | O38: 0 | P38: 0 | S38: 0 | T38: 0
A39: 35 | E39: 0 | F39: 0 | G39: 0 | H39: 0 | I39: 0 | J39: 0 | K39: 0 | L39: 0 | M39: 0 | N39: 0 | O39: 0 | P39: 0 | S39: 0 | T39: 0
A40: 36 | E40: 0 | F40: 0 | G40: 0 | H40: 0 | I40: 0 | J40: 0 | K40: 0 | L40: 0 | M40: 0 | N40: 0 | O40: 0 | P40: 0 | S40: 0 | T40: 0
A41: 37 | E41: 0 | F41: 0 | G41: 0 | H41: 0 | I41: 0 | J41: 0 | K41: 0 | L41: 0 | M41: 0 | N41: 0 | O41: 0 | P41: 0 | S41: 0 | T41: 0
A42: 38 | E42: 0 | F42: 0 | G42: 0 | H42: 0 | I42: 0 | J42: 0 | K42: 0 | L42: 0 | M42: 0 | N42: 0 | O42: 0 | P42: 0 | S42: 0 | T42: 0
A43: 39 | E43: 0 | F43: 0 | G43: 0 | H43: 0 | I43: 0 | J43: 0 | K43: 0 | L43: 0 | M43: 0 | N43: 0 | O43: 0 | P43: 0 | S43: 0 | T43: 0
A44: 40 | E44: 0 | F44: 0 | G44: 0 | H44: 0 | I44: 0 | J44: 0 | K44: 0 | L44: 0 | M44: 0 | N44: 0 | O44: 0 | P44: 0 | S44: 0 | T44: 0
A45: 41 | E45: 0 | F45: 0 | G45: 0 | H45: 0 | I45: 0 | J45: 0 | K45: 0 | L45: 0 | M45: 0 | N45: 0 | O45: 0 | P45: 0 | S45: 0 | T45: 0
A46: 42 | E46: 0 | F46: 0 | G46: 0 | H46: 0 | I46: 0 | J46: 0 | K46: 0 | L46: 0 | M46: 0 | N46: 0 | O46: 0 | P46: 0 | S46: 0 | T46: 0
A47: 43 | E47: 0 | F47: 0 | G47: 0 | H47: 0 | I47: 0 | J47: 0 | K47: 0 | L47: 0 | M47: 0 | N47: 0 | O47: 0 | P47: 0 | S47: 0 | T47: 0
A48: 44 | E48: 0 | F48: 0 | G48: 0 | H48: 0 | I48: 0 | J48: 0 | K48: 0 | L48: 0 | M48: 0 | N48: 0 | O48: 0 | P48: 0 | S48: 0 | T48: 0
A49: 45 | E49: 0 | F49: 0 | G49: 0 | H49: 0 | I49: 0 | J49: 0 | K49: 0 | L49: 0 | M49: 0 | N49: 0 | O49: 0 | P49: 0 | S49: 0 | T49: 0
A50: 46 | E50: 0 | F50: 0 | G50: 0 | H50: 0 | I50: 0 | J50: 0 | K50: 0 | L50: 0 | M50: 0 | N50: 0 | O50: 0 | P50: 0 | S50: 0 | T50: 0
A51: 47 | E51: 0 | F51: 0 | G51: 0 | H51: 0 | I51: 0 | J51: 0 | K51: 0 | L51: 0 | M51: 0 | N51: 0 | O51: 0 | P51: 0 | S51: 0 | T51: 0
A52: 48 | E52: 0 | F52: 0 | G52: 0 | H52: 0 | I52: 0 | J52: 0 | K52: 0 | L52: 0 | M52: 0 | N52: 0 | O52: 0 | P52: 0 | S52: 0 | T52: 0
A53: 49 | E53: 0 | F53: 0 | G53: 0 | H53: 0 | I53: 0 | J53: 0 | K53: 0 | L53: 0 | M53: 0 | N53: 0 | O53: 0 | P53: 0 | S53: 0 | T53: 0
A54: 50 | E54: 0 | F54: 0 | G54: 0 | H54: 0 | I54: 0 | J54: 0 | K54: 0 | L54: 0 | M54: 0 | N54: 0 | O54: 0 | P54: 0 | S54: 0 | T54: 0
A55: 51 | E55: 0 | F55: 0 | G55: 0 | H55: 0 | I55: 0 | J55: 0 | K55: 0 | L55: 0 | M55: 0 | N55: 0 | O55: 0 | P55: 0 | S55: 0 | T55: 0
A56: 52 | E56: 0 | F56: 0 | G56: 0 | H56: 0 | I56: 0 | J56: 0 | K56: 0 | L56: 0 | M56: 0 | N56: 0 | O56: 0 | P56: 0 | S56: 0 | T56: 0
A57: 53 | E57: 0 | F57: 0 | G57: 0 | H57: 0 | I57: 0 | J57: 0 | K57: 0 | L57: 0 | M57: 0 | N57: 0 | O57: 0 | P57: 0 | S57: 0 | T57: 0
A58: 54 | E58: 0 | F58: 0 | G58: 0 | H58: 0 | I58: 0 | J58: 0 | K58: 0 | L58: 0 | M58: 0 | N58: 0 | O58: 0 | P58: 0 | S58: 0 | T58: 0
A59: 55 | E59: 0 | F59: 0 | G59: 0 | H59: 0 | I59: 0 | J59: 0 | K59: 0 | L59: 0 | M59: 0 | N59: 0 | O59: 0 | P59: 0 | S59: 0 | T59: 0
A60: 56 | E60: 0 | F60: 0 | G60: 0 | H60: 0 | I60: 0 | J60: 0 | K60: 0 | L60: 0 | M60: 0 | N60: 0 | O60: 0 | P60: 0 | S60: 0 | T60: 0
A61: 57 | E61: 0 | F61: 0 | G61: 0 | H61: 0 | I61: 0 | J61: 0 | K61: 0 | L61: 0 | M61: 0 | N61: 0 | O61: 0 | P61: 0 | S61: 0 | T61: 0
A62: 58 | E62: 0 | F62: 0 | G62: 0 | H62: 0 | I62: 0 | J62: 0 | K62: 0 | L62: 0 | M62: 0 | N62: 0 | O62: 0 | P62: 0 | S62: 0 | T62: 0
A63: 59 | E63: 0 | F63: 0 | G63: 0 | H63: 0 | I63: 0 | J63: 0 | K63: 0 | L63: 0 | M63: 0 | N63: 0 | O63: 0 | P63: 0 | S63: 0 | T63: 0
A64: 60 | E64: 0 | F64: 0 | G64: 0 | H64: 0 | I64: 0 | J64: 0 | K64: 0 | L64: 0 | M64: 0 | N64: 0 | O64: 0 | P64: 0 | S64: 0 | T64: 0
